Workbook

Sheet About
I15: Thermal Analysis Module | K15: (with HeatSink Design)
I16: 熱學分析模組 | K16: (帶散熱器設計)
I17: 热分析模组 | K17: (带散热器设计)
I18: PROGCODE | J18: 120
I19: VER | J19: 20
I20: FUNC | J20: -1
I21: CODE
I22: MAC | J22: 28:18:78:D2:C4:47
I23: Purchasing # | J23: A0016
I24: Computer+User | J24: CADMUSSURFACE-Cadmus Yuan
I25: (Please return MAC address for more functions)
I26: (請回傳MAC地址以獲得更高權限)
I29: Email: sales@ichijouriki.com
I30: www.ichijouriki.com
I31: https://www.facebook.com/ichijouriki

Sheet TC (hidden)
C1: 快速熱分析工具(TAM) | K1: 等效Rth | L1: Tj | M1: Tj | N1: 等效Rth
C2: 環境溫度 | I2: Rth | J2: 效率 | R2: Rth | S2: 效率 | U2: 環境溫度
V3: 材料 | AA3: 光源個數 | AB3: 電流(mA) | AE3: 總功率 | AG3: 幫助檔案：
C4: 光源 | U4: 光源
G5: 面積 | H5: 厚度 | I5: 總功率 | O5: k | P5: 面積 | Q5: 厚度 | AG5: 線上幫助： | AH5: IJR website
D6: 材料 | AA6: 封裝形式： | AD6: PCB 面積 | AG6: Email: | AH6: sales@ichijouriki.com
C7: 焊點 | U7: 焊點
C8: 焊點 | U8: 焊點 | AF8: (1) | AG8: LED
AF9: (2) | AG9: 焊點
C10: PCB | U10: PCB | AF10: (3) | AG10: PCB
C11: 熱介材料 | U11: 熱介材料 | AF11: (4) | AG11: 熱介材料
AF12: (5) | AG12: 散熱器
AF13: (6) | AG13: 鰭片
D14: 材料 | E14: 幾何尺寸 | V14: 材料 | W14: 幾何尺寸 | AF14: (7) | AG14: 環境溫度
C15: 散熱器1 | U15: 散熱器1
C16: 散熱器2 | U16: 散熱器2
C17: Driver | U17: Driver
M29: Temp1 | Q29: Temp1
F30: solder | G30: 1/r | H30: 1/r | L30: Rth1 | M30: 33.16123772 | P30: Rth1 | Q30: 241.2671393 | U30: solder | V30: 1/r | W30: 1/r
G31: 0 | H31: 0 | K31: LS | L31: 0.17 | M31: 32.52940815 | O31: LS | P31: 0.275 | Q31: 233.9287209 | V31: 2.727242857 | W31: 0.9028114286
F32: sum 1/r | G32: 0 | H32: 0 | K32: SOLDER | L32: 0 | M32: 32.52940815 | O32: SOLDER | P32: 0.006886949349 | Q32: 233.7449416 | U32: sum 1/r | V32: 3.630054286 | W32: 0.275477974
K33: PCB | L33: 0.003703703704 | M33: 32.5156428 | O33: PCB | P33: 0.0116 | Q33: 233.4353937
G34: Rth | H34: Q | K34: TIM | L34: 0.2604166667 | M34: 31.54776663 | O34: TIM | P34: 0.006666666667 | Q34: 233.2574927 | U34: Rth | V34: Q
F35: HS1 | G35: 0.8997747324 | H35: 1.160137614 | K35: HS | L35: 0.8997747324 | M35: 28.20362382 | O35: HS | P35: 3.486763118 | Q35: 140.2126691 | T35: HS1 | U35: 3.486763118 | V35: 0.2958027731
F36: HS2 | G36: 2125.244043 | H36: 0.0005163181435 | K36: ENV | M36: 25 | O36: ENV | Q36: 50 | T36: HS2 | U36: 1525.449049 | V36: 0.0007479272153
G37: 0.8997747324 | H37: 1.160137614 | L37: 1.333895103 | P37: 3.786916734 | U37: 3.486763118 | V37: 0.2958027731
K38: Heat | L38: 3.716644498 | M38: 1.160137614 | P38: 26.68515769 | Q38: 0.2958027731

Sheet EN (hidden)
C1: Thermal Analysis Module (TAM) | K1: Eq. Rth | L1: Tj | M1: Tj | N1: Eq. Rth
C2: Env Temp | I2: Rth | J2: Efficiency | R2: Rth | S2: Efficiency | U2: Env Temp | V2: 50 | W2: ( C)
V3: Material | AA3: # of LS | AB3: Current (mA) | AE3: Total P | AG3: Help File
C4: L.S. | U4: LightSource
G5: Area | H5: Thickness | I5: Total P | AG5: Online Help | AH5: IJR website
D6: Material | AA6: Form: | AD6: PCB Area | AG6: Email: | AH6: sales@ichijouriki.com
C7: Solder J. | U7: Solder Joint
C8: Solder J. | U8: Solder Joint | AF8: 1 | AG8: LED
AF9: 2 | AG9: Solder
C10: PCB | U10: PCB | AF10: 3 | AG10: PCB
C11: TIM | U11: TIM | AF11: 4 | AG11: TIM
AF12: 5 | AG12: HS
AF13: 6 | AG13: Fin
D14: Material | E14: Geometry | V14: Material | W14: Geometry | AF14: 7 | AG14: Env Temp
C15: HS1 | U15: HS1
C16: HS2 | U16: HS2
C17: Driver | U17: Driver
M29: Temp1 | Q29: Temp1
F30: solder | G30: 1/r | H30: 1/r | L30: Rth1 | M30: 37.11896468 | P30: Rth1 | Q30: 241.2671393 | U30: solder | V30: 1/r | W30: 1/r
G31: 3.2915e-05 | H31: 0.9028114286 | K31: LS | L31: 11 | M31: 29.78054632 | O31: LS | P31: 0.275 | Q31: 233.9287209 | V31: 2.727242857 | W31: 0.9028114286
F32: sum 1/r | G32: 0.9028443436 | H32: 1.107610639 | K32: SOLDER | L32: 1.107610639 | M32: 29.0416272 | O32: SOLDER | P32: 0.006886949349 | Q32: 233.7449416 | U32: sum 1/r | V32: 3.630054286 | W32: 0.275477974
K33: PCB | L33: 3.261578604 | M33: 26.86573372 | O33: PCB | P33: 0.0116 | Q33: 233.4353937
G34: Rth | H34: Q | K34: TIM | L34: 0.6666666667 | M34: 26.42098109 | O34: TIM | P34: 0.006666666667 | Q34: 233.2574927 | U34: Rth | V34: Q
F35: HS1 | G35: 1.070855367 | H35: 0.9441628633 | K35: HS | L35: 1.070855367 | M35: 25.70658248 | O35: HS | P35: 3.486763118 | Q35: 140.2126691 | T35: HS1 | U35: 3.486763118 | V35: 0.2958027731
F36: HS2 | G36: 2125.244043 | H36: 0.0005163181435 | K36: ENV | M36: 25 | O36: ENV | Q36: 50 | T36: HS2 | U36: 1525.449049 | V36: 0.0007479272153
G37: 1.070855367 | H37: 0.9441628633 | L37: 17.10671128 | P37: 3.786916734 | U37: 3.486763118 | V37: 0.2958027731
K38: Heat | L38: 0.6671289421 | M38: 0.9441628633 | P38: 26.68515769 | Q38: 0.2958027731

Sheet SC (hidden)
C1: 快速热分析工具(TAM) | K1: 等效Rth | L1: Tj | M1: Tj | N1: 等效Rth
C2: 环境温度 | J2: 效率 | S2: 效率 | U2: 环境温度 | V2: 50 | W2: ( C)
V3: 材料 | AA3: 光源个数 | AB3: 电流(mA) | AE3: 总功率 | AG3: 帮助档案：
C4: 光源 | U4: 光源
G5: 面积 | H5: 厚度 | I5: 总功率 | P5: 面积 | Q5: 厚度 | AG5: 线上帮助： | AH5: IJR website
D6: 材料 | AA6: 封装形式： | AD6: PCB 面积 | AG6: Email: | AH6: sales@ichijouriki.com
C7: 焊点 | U7: 焊点
C8: 焊点 | U8: 焊点 | AF8: 1 | AG8: LED
AF9: 2 | AG9: 焊点
C10: PCB | U10: PCB | AF10: 3 | AG10: PCB
C11: 热介材料 | U11: 热介材料 | AF11: 4 | AG11: 热介材料
AF12: 5 | AG12: 散热器
AF13: 6 | AG13: 鳍片
D14: 材料 | E14: 几何尺寸 | V14: 材料 | W14: 几何尺寸 | AF14: 7 | AG14: 环境温度
C15: 散热器1 | U15: 散热器1
C16: 散热器2 | U16: 散热器2
C17: Driver | U17: Driver

Sheet DBM (hidden)
B2: 資料庫管理 | D2: Database management
B3: 数据库管理
H8: Number of data | J8: 97

Sheet DB
F3: Thermal Analysis Module | H3: (with HeatSink Design)
F4: 熱學分析模組 | H4: (帶散熱器設計)
F5: 热分析模组 | H5: (带散热器设计)
C9: Database / 現有資料庫 | E9: Number of data / 資料個數
C10: LightSource | D10: 光源 | E10: 97
C11: Metal | D11: 金屬 | E11: 10
C12: PCB | D12: 電路板 | E12: 10
C13: TIM | D13: 熱介面材料 | E13: 5
C14: Driver | D14: 驅動 | E14: 2
C15: HeatSink | D15: 散熱器 | E15: 32

Sheet TM_S
C1: 快速热分析工具(TAM) | K1: 等效Rth | L1: Tj | M1: Tj | N1: 等效Rth
C2: 环境温度 | D2: 25 | E2: (C) | F2: n | G2: If | H2: Vf | I2: Rth | J2: 效率 | K2: =+L37 -> 0.193497496 | L2: =+M35+L37*L38 -> 42.88742799 | M2: =+Q35+P37*P38 -> 76.87986953 | N2: =+P37 -> 12.00609756 | O2: n | P2: If | Q2: Vf | R2: Rth | S2: 效率 | U2: 环境温度 | V2: 50 | W2: ( C)
G3: (mA) | H3: (V) | I3: (C/W) | J3: % | P3: (mA) | Q3: (V) | R3: (C/W) | S3: % | V3: 材料 | AA3: 光源个数 | AB3: 电流(mA) | AE3: 总功率 | AG3: 帮助档案： | AH3: 幫助檔案：
C4: 光源 | D4: Nichia-NF2L757GT | F4: =+AA4 -> 255 | G4: =+AB4 -> 180 | H4: 3.019277964 | I4: 11 | J4: 50 | O4: 1 | P4: 20 | Q4: 6.671289421 | R4: 11 | S4: 50 | U4: 光源 | AA4: 255 | AB4: 180 | AE4: =+I6 -> 138.5848586 | AF4: W
F5: k | G5: 面积 | H5: 厚度 | I5: 总功率 | O5: k | P5: 面积 | Q5: 厚度 | AG5: 线上帮助： | AH5: IJR website | AI5: IJR website
D6: 材料 | F6: (W/mK) | G6: (mm2) | H6: (mm) | I6: =H4*G4*F4/1000 -> 138.5848586 | O6: (W/mK) | P6: (mm2) | Q6: (mm) | AA6: 封装形式： | AD6: PCB 面积 | AE6: =250*300 -> 75000 | AF6: mm2 | AG6: Email: | AH6: sales@ichijouriki.com | AI6: sales@ichijouriki.com
C7: 焊点 | D7: SAC-G | F7: 58 | G7: 3.2915 | H7: 0.15 | O7: 0 | P7: 3.2915 | Q7: 0.07 | U7: 焊点
C8: 焊点 | D8: SAC-G | F8: 58 | G8: 1.0896 | H8: 0.15 | O8: 0 | P8: 1.0896 | Q8: 0.07 | U8: 焊点 | AE8: 42.88742799 | AF8: 1 | AG8: LED
P9: (a*b) | AE9: 39.8983428 | AF9: 2 | AG9: 焊点
C10: PCB | D10: Ideal-FR4-G | F10: 0.2 | G10: =IF(AE6>0,AE6/F4,H20*J15/F4) -> 294.1176471 | H10: 1.2 | O10: 0 | P10: 500 | Q10: 0.116 | U10: PCB | AE10: 39.73793492 | AF10: 3 | AG10: PCB
C11: 热介材料 | D11: Eporite-TIM1101 | F11: 2 | G11: =+G10 -> 294.1176471 | H11: 0.5 | O11: 0 | P11: 500 | Q11: 0.2 | U11: 热介材料 | AE11: 34.19454058 | AF11: 4 | AG11: 热介材料
F12: Thermal | H12: Fin | O12: Thermal | Q12: Fin | AE12: 33.96356581 | AF12: 5 | AG12: 散热器
F13: h | G13: k | H13: n | I13: b | J13: t | O13: h | P13: k | Q13: n | R13: b | S13: t | AE13: 29.47951643 | AF13: 6 | AG13: 鳍片
D14: 材料 | E14: 几何尺寸 | F14: (W/m2K) | G14: (W/mK) | I14: (mm) | J14: (mm) | O14: (W/m2K) | P14: (W/mK) | R14: (mm) | S14: (mm) | V14: 材料 | W14: 几何尺寸 | AE14: 25 | AF14: 7 | AG14: 环境温度
C15: 散热器1 | D15: Al-6063-Extruded | E15: PCC-Hproject-600W | F15: 8 | G15: 170 | H15: 32 | I15: 1 | J15: 300 | O15: 100 | P15: 164 | Q15: 0 | R15: 0.001 | S15: 100 | U15: 散热器1 | V15: Al-G | W15: G-P100x100x10-7W
C16: 散热器2 | F16: 0 | G16: 0 | H16: 0 | I16: 5 | J16: 50 | O16: 0 | P16: 0 | Q16: 15 | R16: 2 | S16: 90 | U16: 散热器2
C17: Driver | E17: 0 | F17: (W) | H17: Block | Q17: Block | U17: Driver | V17: DRV-Test1 | W17: 2 | X17: (W)
E18: (W) | H18: L | I18: l | J18: delta | Q18: L | R18: l | S18: delta | W18: (W)
H19: (mm) | I19: (mm) | J19: (mm) | Q19: (mm) | R19: (mm) | S19: (mm)
H20: 300 | I20: 175 | J20: 1 | Q20: 100 | R20: 0.001 | S20: 10
H21: 50 | I21: 10 | J21: 3 | Q21: 59 | R21: 38 | S21: 10
M29: Temp1 | Q29: Temp1
F30: solder | G30: 1/r | H30: 1/r | L30: Rth1 | M30: =+M31+L31*L38 -> 42.88742799 | P30: Rth1 | Q30: =+Q31+P31*P38 -> 76.87986953 | U30: solder | V30: 1/r | W30: 1/r
G31: =+F7*G7/1000/H7 -> 1.272713333 | H31: =+F8*G8/1000/H8 -> 0.421312 | K31: LS | L31: =I4/F4 -> 0.0431372549 | M31: =+M32+L32*L38 -> 39.8983428 | O31: LS | P31: =R4/O4 -> 11 | Q31: =+Q32+P32*P38 -> 54.1460277 | V31: =+O7*P7/1000/Q7 -> 0 | W31: =+O8*P8/1000/Q8 -> 0
F32: sum 1/r | G32: =+G31+H31 -> 1.694025333 | H32: =IF(G32>0,1/G32,0) -> 0.5903099442 | K32: SOLDER | L32: =+H32/F4 -> 0.002314940958 | M32: =+M33+L33*L38 -> 39.73793492 | O32: SOLDER | P32: =+W32/O4 -> 0 | Q32: =+Q33+P33*P38 -> 54.1460277 | U32: sum 1/r | V32: =+V31+W31 -> 0 | W32: =IF(V32>0,1/V32,0) -> 0
K33: PCB | L33: =IF(AND(F10>0,G10>0),H10/(F10*G10*0.001),0)/F4 -> 0.08 | M33: =+M34+L34*L38 -> 34.19454058 | O33: PCB | P33: =IF(AND(O10>0,P10>0),Q10/(O10*P10*0.001),0)/O4 -> 0 | Q33: =+Q34+P34*P38 -> 54.1460277
G34: Rth | H34: Q | K34: TIM | L34: =IF(AND(F11>0,G11>0),H11/(F11*G11*0.001),0)/F4 -> 0.003333333333 | M34: =+M35+L35*L38 -> 33.96356581 | O34: TIM | P34: =IF(AND(O11>0,P11>0),Q11/(O11*P11*0.001),0)/O4 -> 0 | Q34: =+Q35+P35*P38 -> 54.1460277 | U34: Rth | V34: Q
F35: HS1 | G35: 0.06471196682 | H35: 15.4687298 | K35: HS | L35: =+G37 -> 0.06471196682 | M35: =M36+(L38/M38) -> 29.47951643 | O35: HS | P35: =+U37 -> 1.006097561 | Q35: =Q36+P38/Q38 -> 52.06671289 | T35: HS1 | U35: 1.006097561 | V35: 1
F36: HS2 | G36: 40120 | H36: 2.5e-05 | K36: ENV | M36: =+D2 -> 25 | O36: ENV | Q36: =+V2 -> 50 | T36: HS2 | U36: 1525.449049 | V36: 0.0007479272153
G37: 0.06471196682 | H37: 15.4687298 | L37: =SUM(L31:L35) -> 0.193497496 | P37: =SUM(P31:P35) -> 12.00609756 | U37: 1.006097561 | V37: 1
K38: Heat | L38: =+E17+F4*G4*H4*(1-J4/100)/1000 -> 69.29242928 | M38: =H37 -> 15.4687298 | P38: =W17+O4*P4*Q4*(1-S4/100)/1000 -> 2.066712894 | Q38: =V37 -> 1

Sheet TM_D (hidden)
C1: 快速热分析工具(TAM) | K1: 等效Rth | L1: Tj | M1: Tj | N1: 等效Rth
C2: 环境温度 | D2: 25 | E2: (C) | F2: n | G2: If | H2: Vf | I2: Rth | J2: 效率 | K2: =+L37 -> 0.3408975581 | L2: =+M35+L37*L38 -> 77.91174364 | M2: =+Q35+P37*P38 -> 102.7965828 | N2: =+P37 -> 4.55548365 | O2: n | P2: If | Q2: Vf | R2: Rth | S2: 效率 | U2: 环境温度 | V2: 50 | W2: ( C)
G3: (mA) | H3: (V) | I3: (C/W) | J3: % | P3: (mA) | Q3: (V) | R3: (C/W) | S3: % | V3: 材料 | AA3: 光源个数 | AB3: 电流(mA) | AE3: 总功率 | AG3: 帮助档案：
C4: 光源 | D4: Everlight-XI3030-2S-R80-1W | F4: 142 | G4: 200 | H4: 6.6 | I4: 15 | J4: 50 | O4: 9 | P4: 240 | Q4: 6.729975567 | R4: 15 | S4: 50 | U4: 光源 | V4: Everlight-XI3030-2S-R80-1W | AA4: 1 | AB4: 800 | AE4: =+I6 -> 187.44 | AF4: W
F5: k | G5: 面积 | H5: 厚度 | I5: 总功率 | O5: k | P5: 面积 | Q5: 厚度 | R5: 總功率 | AG5: 线上帮助： | AH5: IJR website
D6: 材料 | F6: (W/mK) | G6: (mm2) | H6: (mm) | I6: =H4*G4*F4/1000 -> 187.44 | O6: (W/mK) | P6: (mm2) | Q6: (mm) | R6: =Q4*P4*O4/1000 -> 14.53674723 | AA6: 封装形式： | AD6: PCB 面积 | AE6: =260*61 -> 15860 | AF6: mm2 | AG6: Email: | AH6: sales@ichijouriki.com
C7: 焊点 | D7: SAC-G | F7: 58 | G7: 3.335 | H7: 0.15 | O7: 380 | P7: 3.335 | Q7: 0.07 | U7: 焊点 | V7: Cu_pure-G
C8: 焊点 | D8: SAC-G | F8: 58 | G8: 1.15 | H8: 0.15 | O8: 58 | P8: 1.15 | Q8: 0.07 | U8: 焊点 | V8: SAC-G | AE8: LED | AF8: 1 | AG8: LED
P9: (a*b) | AE9: 焊點 | AF9: 2 | AG9: 焊点
C10: PCB | D10: Ideal-MCPCB-G | F10: 33.73 | G10: 111.6901408 | H10: 1.2 | O10: 0.2 | P10: 500 | Q10: 0.116 | U10: PCB | V10: Ideal-FR4-G | AE10: PCB | AF10: 3 | AG10: PCB
C11: 热介材料 | D11: Eporite-TIM3101 | F11: 6 | G11: 111.6901408 | H11: 0.5 | O11: 2.56 | P11: 500 | Q11: 0.2 | U11: 热介材料 | V11: Eporite-TIM1101 | AE11: 熱介材料 | AF11: 4 | AG11: 热介材料
F12: Thermal | H12: Fin | O12: Thermal | Q12: Fin | AE12: 散熱器 | AF12: 5 | AG12: 散热器
F13: h | G13: k | H13: n | I13: b | J13: t | O13: h | P13: k | Q13: n | R13: b | S13: t | AE13: 鰭片 | AF13: 6 | AG13: 鳍片
D14: 材料 | E14: 几何尺寸 | F14: (W/m2K) | G14: (W/mK) | I14: (mm) | J14: (mm) | O14: (W/m2K) | P14: (W/mK) | R14: (mm) | S14: (mm) | V14: 材料 | W14: 几何尺寸 | AE14: 環境溫度 | AF14: 7 | AG14: 环境温度
C15: 散热器1 | D15: Al-6063-Extruded | E15: PCC-Flooding-180W | F15: 8 | G15: 170 | H15: 4 | I15: 1 | J15: 630 | O15: 12 | P15: 164 | Q15: 80 | R15: 2 | S15: 22 | U15: 散热器1 | V15: Al-G | W15: G-S22x22x6-1.5W
C16: 散热器2 | F16: 0 | G16: 0 | H16: 0 | I16: 5 | J16: 50 | O16: 12 | P16: 164 | Q16: 0 | R16: 0.001 | S16: 100 | U16: 散热器2 | V16: Al-G | W16: G-P100x100x10-7W
C17: Driver | E17: 0 | F17: (W) | H17: Block | Q17: Block | U17: Driver | W17: 0
E18: (W) | H18: L | I18: l | J18: delta | Q18: L | R18: l | S18: delta | W18: (W)
H19: (mm) | I19: (mm) | J19: (mm) | Q19: (mm) | R19: (mm) | S19: (mm)
H20: 310 | I20: 90 | J20: 1 | Q20: 22 | R20: 6 | S20: 2
H21: 50 | I21: 10 | J21: 3 | Q21: 100 | R21: 0.001 | S21: 10
M29: Temp1 | Q29: Temp1
F30: solder | G30: 1/r | H30: 1/r | L30: Rth1 | M30: =+M31+L31*L38 -> 77.91174364 | P30: Rth1 | Q30: =+Q31+P31*P38 -> 102.7965828 | U30: solder | V30: 1/r | W30: 1/r
G31: =+F7*G7/1000/H7 -> 1.289533333 | H31: =+F8*G8/1000/H8 -> 0.4446666667 | K31: LS | L31: =I4/F4 -> 0.1056338028 | M31: =+M32+L32*L38 -> 68.01174364 | O31: LS | P31: =R4/O4 -> 1.666666667 | Q31: =+Q32+P32*P38 -> 90.68262677 | V31: =+O7*P7/1000/Q7 -> 18.10428571 | W31: =+O8*P8/1000/Q8 -> 0.9528571429
F32: sum 1/r | G32: =+G31+H31 -> 1.7342 | H32: =IF(G32>0,1/G32,0) -> 0.5766347595 | K32: SOLDER | L32: =+H32/F4 -> 0.004060808166 | M32: =+M33+L33*L38 -> 67.63116469 | O32: SOLDER | P32: =+W32/O4 -> 0.005830418124 | Q32: =+Q33+P33*P38 -> 90.64024911 | U32: sum 1/r | V32: =+V31+W31 -> 19.05714286 | W32: =IF(V32>0,1/V32,0) -> 0.05247376312
K33: PCB | L33: =IF(AND(F10>0,G10>0),H10/(F10*G10*0.001),0)/F4 -> 0.002243167592 | M33: =+M34+L34*L38 -> 67.42093503 | O33: PCB | P33: =IF(AND(O10>0,P10>0),Q10/(O10*P10*0.001),0)/O4 -> 0.1288888889 | Q33: =+Q34+P34*P38 -> 89.70343651
G34: Rth | H34: Q | K34: TIM | L34: =IF(AND(F11>0,G11>0),H11/(F11*G11*0.001),0)/F4 -> 0.005254308533 | M34: =+M35+L35*L38 -> 66.92850123 | O34: TIM | P34: =IF(AND(O11>0,P11>0),Q11/(O11*P11*0.001),0)/O4 -> 0.01736111111 | Q34: =+Q35+P35*P38 -> 89.57724947 | U34: Rth | V34: Q
F35: HS1 | G35: 0.223705471 | H35: 4.470771581 | K35: HS | L35: =+G37 -> 0.223705471 | M35: =M36+(L38/M38) -> 45.96282449 | O35: HS | P35: =+U37 -> 2.736736565 | Q35: =Q36+P38/Q38 -> 69.68562564 | T35: HS1 | U35: 4.073544641 | V35: 0.2492223832
F36: HS2 | G36: 40120 | H36: 2.5e-05 | K36: ENV | M36: =+D2 -> 25 | O36: ENV | Q36: =+V2 -> 50 | T36: HS2 | U36: 8.339430894 | V36: 0.12
G37: 0.223705471 | H37: 4.470771581 | L37: =SUM(L31:L35) -> 0.3408975581 | P37: =SUM(P31:P35) -> 4.55548365 | U37: 2.736736565 | V37: 0.3692223832
K38: Heat | L38: =+E17+F4*G4*H4*(1-J4/100)/1000 -> 93.72 | M38: =H37 -> 4.470771581 | P38: =W17+O4*P4*Q4*(1-S4/100)/1000 -> 7.268373613 | Q38: =V37 -> 0.3692223832

Sheet Sheet2 (hidden)
C1: 快速熱分析工具(TAM) | K1: 等效Rth | L1: Tj | M1: Tj | N1: 等效Rth
C2: 環境溫度 | D2: 25 | E2: ( C) | F2: n | G2: If | H2: Vf | I2: Rth | J2: 效率 | K2: =+L37 -> 5.021064153 | L2: =+M35+L37*L38 -> 106.7794679 | M2: =+Q35+P37*P38 -> 243.8037115 | N2: =+P37 -> 3.872671407 | O2: n | P2: If | Q2: Vf | R2: Rth | S2: 效率 | U2: 環境溫度 | V2: 50 | W2: ( C)
G3: (mA) | H3: (V) | I3: (C/W) | J3: % | P3: (mA) | Q3: (V) | R3: (C/W) | S3: % | V3: 材料 | AA3: 光源個數 | AB3: 電流(mA) | AE3: 總功率 | AG3: 幫助檔案：
C4: 光源 | D4: Everlight-XI3030 | F4: =+AA4 -> 44 | G4: =+AB4 -> 80 | H4: 5.810194739 | I4: 15 | J4: 50 | O4: 40 | P4: 200 | Q4: 6.671289421 | R4: 11 | S4: 50 | U4: 光源 | V4: 光源 | AA4: 44 | AB4: 80 | AE4: =+I6 -> 20.45188548 | AF4: W | AG4: 線上幫助：
F5: k | G5: 面積 | H5: 厚度 | I5: 總功率 | O5: k | P5: 面積 | Q5: 厚度
D6: 材料 | F6: (W/mK) | G6: (mm2) | H6: (mm) | I6: =H4*G4*F4/1000 -> 20.45188548 | O6: (W/mK) | P6: (mm2) | Q6: (mm) | AA6: 封裝形式： | AD6: PCB 面積 | AE6: =800*30 -> 24000 | AF6: mm2
C7: 焊點 | D7: SAC-G | F7: 58 | G7: 3.4155 | H7: 0.15 | O7: 58 | P7: 3.2915 | Q7: 0.07 | U7: 焊點 | V7: General-SAC | AF7: 溫度
C8: 焊點 | D8: SAC-G | F8: 58 | G8: 1.15 | H8: 0.15 | O8: 10 | P8: 1.0896 | Q8: 0.07 | U8: 焊點 | V8: General-AgSP | AE8: LED | AF8: 106.7794679
P9: (a*b) | AE9: 焊點 | AF9: 103.2933511
C10: PCB | D10: Ideal-FR4-G | F10: 0.2 | G10: =IF(AE6>0,AE6/F4,H20*J15/F4) -> 545.4545455 | H10: 1.2 | O10: 33.73 | P10: 500 | Q10: 0.116 | U10: PCB | V10: General-Ideal-MCPCB | AE10: PCB | AF10: 103.1616996
C11: 熱介材料 | D11: CS-DSTape | F11: 1.5 | G11: 5.25732 | H11: 0.5 | O11: 2.56 | P11: 500 | Q11: 0.2 | U11: 熱介材料 | V11: Eporite-TIM1101 | AE11: 熱介材料 | AF11: 100.605214
F12: Thermal | H12: Fin | O12: Thermal | Q12: Fin | AE12: 散熱器 | AF12: 85.86970933
F13: h | G13: k | H13: n | I13: b | J13: t | O13: h | P13: k | Q13: n | R13: b | S13: t | AE13: 鰭片 | AF13: 55.4343534
D14: 材料 | E14: 幾何尺寸 | F14: (W/m2K) | G14: (W/mK) | I14: (mm) | J14: (mm) | O14: (W/m2K) | P14: (W/mK) | R14: (mm) | S14: (mm) | V14: 材料 | W14: 幾何尺寸 | AE14: 環境溫度 | AF14: 25
C15: 散熱器1 | D15: Al-6063-Extruded | E15: G-S1000x42x29 | F15: 8 | G15: 170 | H15: 0 | I15: 2 | J15: 1000 | O15: 12 | P15: 58 | Q15: 24 | R15: 5 | S15: 50 | U15: 散熱器1 | V15: General-SAC | W15: TS-Dot1
C16: 散熱器2 | F16: 0 | G16: 0 | H16: 0 | I16: 5 | J16: 50 | O16: 0 | P16: 0 | Q16: 15 | R16: 2 | S16: 90 | U16: 散熱器2 | V16: 散热器2
C17: Driver | E17: 0 | F17: (W) | H17: Block | Q17: Block | U17: Driver | V17: Driver | W17: 0 | X17: (W)
E18: (W) | H18: L | I18: l | J18: delta | Q18: L | R18: l | S18: delta | W18: (W)
H19: (mm) | I19: (mm) | J19: (mm) | Q19: (mm) | R19: (mm) | S19: (mm)
H20: 42 | I20: 29 | J20: 0.7 | Q20: 50 | R20: 10 | S20: 20
H21: 50 | I21: 10 | J21: 3 | Q21: 59 | R21: 38 | S21: 10
AB27: G-GC230x203-x3-13W
M29: Temp1 | Q29: Temp1
F30: solder | G30: 1/r | H30: 1/r | L30: Rth1 | M30: =+M31+L31*L38 -> 106.7794679 | P30: Rth1 | Q30: =+Q31+P31*P38 -> 243.8037115 | U30: solder | V30: 1/r | W30: 1/r
G31: =+F7*G7/1000/H7 -> 1.32066 | H31: =+F8*G8/1000/H8 -> 0.4446666667 | K31: LS | L31: =I4/F4 -> 0.3409090909 | M31: =+M32+L32*L38 -> 103.2933511 | O31: LS | P31: =R4/O4 -> 0.275 | Q31: =+Q32+P32*P38 -> 236.4652931 | V31: =+O7*P7/1000/Q7 -> 2.727242857 | W31: =+O8*P8/1000/Q8 -> 0.1556571429
F32: sum 1/r | G32: =+G31+H31 -> 1.765326667 | H32: =IF(G32>0,1/G32,0) -> 0.566467396 | K32: SOLDER | L32: =+H32/F4 -> 0.012874259 | M32: =+M33+L33*L38 -> 103.1616996 | O32: SOLDER | P32: =+W32/O4 -> 0.008671823511 | Q32: =+Q33+P33*P38 -> 236.2338841 | U32: sum 1/r | V32: =+V31+W31 -> 2.8829 | W32: =IF(V32>0,1/V32,0) -> 0.3468729404
K33: PCB | L33: =IF(AND(F10>0,G10>0),H10/(F10*G10*0.001),0)/F4 -> 0.25 | M33: =+M34+L34*L38 -> 100.605214 | O33: PCB | P33: =IF(AND(O10>0,P10>0),Q10/(O10*P10*0.001),0)/O4 -> 0.0001719537504 | Q33: =+Q34+P34*P38 -> 236.2292955
G34: Rth | H34: Q | K34: TIM | L34: =IF(AND(F11>0,G11>0),H11/(F11*G11*0.001),0)/F4 -> 1.440992288 | M34: =+M35+L35*L38 -> 85.86970933 | O34: TIM | P34: =IF(AND(O11>0,P11>0),Q11/(O11*P11*0.001),0)/O4 -> 0.00390625 | Q34: =+Q35+P35*P38 -> 236.1250566 | U34: Rth | V34: Q
F35: HS1 | G35: 2.976288515 | H35: 0.336 | K35: HS | L35: =+G37 -> 2.976288515 | M35: =M36+(L38/M38) -> 55.4343534 | O35: HS | P35: =+U37 -> 3.584921379 | Q35: =Q36+P38/Q38 -> 140.4608643 | T35: HS1 | U35: 3.584921379 | V35: 0.2949911864
F36: HS2 | G36: 40120 | H36: 2.5e-05 | K36: ENV | M36: =+D2 -> 25 | O36: ENV | Q36: =+V2 -> 50 | T36: HS2 | U36: 1525.449049 | V36: 0.0007479272153
G37: 2.976288515 | H37: 0.336 | L37: =SUM(L31:L35) -> 5.021064153 | P37: =SUM(P31:P35) -> 3.872671407 | U37: 3.584921379 | V37: 0.2949911864
K38: Heat | L38: =+E17+F4*G4*H4*(1-J4/100)/1000 -> 10.22594274 | M38: =H37 -> 0.336 | P38: =W17+O4*P4*Q4*(1-S4/100)/1000 -> 26.68515769 | Q38: =V37 -> 0.2949911864
AB40: G-GC230x203-x3-4W

Sheet TM_S-bp (hidden)
A1: 快速熱分析工具(TAM) | K1: 等效Rth | L1: Tj | M1: Tj | N1: 等效Rth
C2: 環境溫度 | D2: 25 | E2: ( C) | F2: n | G2: If | H2: Vf | I2: Rth | J2: 效率 | K2: =+L37 -> 48.50057628 | L2: =+M35+L37*L38 -> 80.25265189 | M2: =+Q35+P37*P38 -> 243.8037115 | N2: =+P37 -> 3.872671407 | O2: n | P2: If | Q2: Vf | R2: Rth | S2: 效率 | U2: 環境溫度 | V2: 50 | W2: ( C)
D3: 材料 | G3: (mA) | H3: (V) | I3: (C/W) | J3: % | P3: (mA) | Q3: (V) | R3: (C/W) | S3: % | V3: 材料
C4: 光源 | D4: Everlight-XI5050 | F4: 1 | G4: 100 | H4: 18.11545243 | I4: 10 | J4: 50 | O4: 40 | P4: 200 | Q4: 6.671289421 | R4: 11 | S4: 50 | U4: 光源 | V4: 光源
F5: k | G5: 面積 | H5: 厚度 | I5: 總功率 | O5: k | P5: 面積 | Q5: 厚度
F6: (W/mK) | G6: (mm2) | H6: (mm) | I6: =H4*G4*F4/1000 -> 1.811545243 | O6: (W/mK) | P6: (mm2) | Q6: (mm)
C7: 焊點 | D7: General-SAC | F7: 58 | G7: 8.54 | H7: 0.1 | O7: 58 | P7: 3.2915 | Q7: 0.07 | U7: 焊點 | V7: General-SAC
C8: 焊點 | D8: General-SAC | F8: 58 | G8: 2.145 | H8: 0.1 | O8: 10 | P8: 1.0896 | Q8: 0.07 | U8: 焊點 | V8: General-AgSP
G9: A=PCB面積/光源個數 或 COB面積*1.2 | P9: (a*b)
C10: PCB | D10: General-Ideal-FR4 | F10: 0.2 | G10: =100/F4 -> 100 | H10: 0.5 | O10: 33.73 | P10: =20*300/12 -> 500 | Q10: 0.116 | U10: PCB | V10: General-Ideal-MCPCB
C11: 熱介材料 | D11: Eporite-TIM3101 | F11: 6 | G11: =G10 -> 100 | H11: 0.5 | O11: 2.56 | P11: 500 | Q11: 0.2 | U11: 熱介材料 | V11: Eporite-TIM1101
F12: Thermal | H12: Fin | O12: Thermal | Q12: Fin
F13: h | G13: k | H13: n | I13: b | J13: t | O13: h | P13: k | Q13: n | R13: b | S13: t
D14: 材料 | E14: 幾何尺寸 | F14: (W/m2K) | G14: (W/mK) | I14: (mm) | J14: (mm) | O14: (W/m2K) | P14: (W/mK) | R14: (mm) | S14: (mm) | V14: 材料 | W14: 幾何尺寸
C15: 散熱器1 | D15: Extruded-Al-A6063 | E15: G-P100x100x10 | F15: 8 | G15: 170 | H15: 0 | I15: 0.001 | J15: 100 | O15: 12 | P15: 58 | Q15: 24 | R15: 5 | S15: 50 | U15: 散熱器1 | V15: General-SAC | W15: TS-Dot1
C16: 散熱器2 | F16: 0 | G16: 0 | H16: 0 | I16: 5 | J16: 50 | O16: 0 | P16: 0 | Q16: 15 | R16: 2 | S16: 90 | U16: 散熱器2 | V16: 散热器2
C17: Driver | E17: 0 | F17: (W) | H17: Block | Q17: Block | U17: Driver | V17: Driver | W17: 0 | X17: (W)
E18: (W) | H18: L | I18: l | J18: delta | Q18: L | R18: l | S18: delta | W18: (W)
H19: (mm) | I19: (mm) | J19: (mm) | Q19: (mm) | R19: (mm) | S19: (mm)
H20: 100 | I20: 0.001 | J20: 10 | Q20: 50 | R20: 10 | S20: 20
H21: 50 | I21: 10 | J21: 3 | Q21: 59 | R21: 38 | S21: 10
M29: Temp1 | Q29: Temp1
F30: solder | G30: 1/r | H30: 1/r | L30: Rth1 | M30: =+M31+L31*L38 -> 80.25265189 | P30: Rth1 | Q30: =+Q31+P31*P38 -> 243.8037115 | U30: solder | V30: 1/r | W30: 1/r
G31: =+F7*G7/1000/H7 -> 4.9532 | H31: =+F8*G8/1000/H8 -> 1.2441 | K31: LS | L31: =I4/F4 -> 10 | M31: =+M32+L32*L38 -> 71.19492568 | O31: LS | P31: =R4/O4 -> 0.275 | Q31: =+Q32+P32*P38 -> 236.4652931 | V31: =+O7*P7/1000/Q7 -> 2.727242857 | W31: =+O8*P8/1000/Q8 -> 0.1556571429
F32: sum 1/r | G32: =+G31+H31 -> 6.1973 | H32: =IF(G32>0,1/G32,0) -> 0.1613605925 | K32: SOLDER | L32: =+H32/F4 -> 0.1613605925 | M32: =+M33+L33*L38 -> 71.04876967 | O32: SOLDER | P32: =+W32/O4 -> 0.008671823511 | Q32: =+Q33+P33*P38 -> 236.2338841 | U32: sum 1/r | V32: =+V31+W31 -> 2.8829 | W32: =IF(V32>0,1/V32,0) -> 0.3468729404
K33: PCB | L33: =IF(AND(F10>0,G10>0),H10/(F10*G10*0.001),0)/F4 -> 25 | M33: =+M34+L34*L38 -> 48.40445413 | O33: PCB | P33: =IF(AND(O10>0,P10>0),Q10/(O10*P10*0.001),0)/O4 -> 0.0001719537504 | Q33: =+Q34+P34*P38 -> 236.2292955
G34: Rth | H34: Q | K34: TIM | L34: =IF(AND(F11>0,G11>0),H11/(F11*G11*0.001),0)/F4 -> 0.8333333333 | M34: =+M35+L35*L38 -> 47.64964361 | O34: TIM | P34: =IF(AND(O11>0,P11>0),Q11/(O11*P11*0.001),0)/O4 -> 0.00390625 | Q34: =+Q35+P35*P38 -> 236.1250566 | U34: Rth | V34: Q
F35: HS1 | G35: 12.50588235 | H35: 0.08 | K35: HS | L35: =+G37 -> 12.50588235 | M35: =M36+(L38/M38) -> 36.32215777 | O35: HS | P35: =+U37 -> 3.584921379 | Q35: =Q36+P38/Q38 -> 140.4608643 | T35: HS1 | U35: 3.584921379 | V35: 0.2949911864
F36: HS2 | G36: 40120 | H36: 2.5e-05 | K36: ENV | M36: =+D2 -> 25 | O36: ENV | Q36: =+V2 -> 50 | T36: HS2 | U36: 1525.449049 | V36: 0.0007479272153
G37: 12.50588235 | H37: 0.08 | L37: =SUM(L31:L35) -> 48.50057628 | P37: =SUM(P31:P35) -> 3.872671407 | U37: 3.584921379 | V37: 0.2949911864
K38: Heat | L38: =+E17+F4*G4*H4*(1-J4/100)/1000 -> 0.9057726215 | M38: =H37 -> 0.08 | P38: =W17+O4*P4*Q4*(1-S4/100)/1000 -> 26.68515769 | Q38: =V37 -> 0.2949911864

Sheet LSI (hidden)
A1: Light source information Import
A2: 光源數據輸入
A3: 光源数据输入 | X3: drawing
D4: Supplier | F4: Nichia | H4: PAD1 | O4: Efficacy | S4: Vf-If
D5: Type | F5: SMD_3030 | H5: x | I5: (mm) | J5: 1.45 | O5: If | P5: 65 | S5: If | T5: 65 | X5: Eff-If | AB5: Vf-If
D6: Name | F6: NF2L757GT | H6: y | I6: (mm) | J6: 2.27 | O6: Vf | P6: 2.75 | S6: Lm | T6: 33.7
W7: 0 | X7: =+O9 -> 65 | Y7: =$O$11*EXP(-$O$12*X7) -> 159.4405594 | AA7: 0 | AB7: =+S9 -> 65 | AC7: =+$S$12*AB7^$S$11 -> 2.75
D8: If | E8: (mA) | F8: 180 | H8: PAD2 | O8: Eff-If | P8: Lm | Q8: Eff | T8: Vf | W8: 1 | X8: =+$X$7+W8*($X$17-$X$7)/10 -> 82.5 | Y8: 157.4320911 | AA8: 1 | AB8: =+$AB$7+AA8*($AB$17-$AB$7)/10 -> 82.5 | AC8: =+$S$12*AB8^$S$11 -> 2.810792505
D9: Vf | E9: (V) | F9: 3 | H9: x | I9: (mm) | J9: 0.48 | N9: If | O9: 65 | P9: 28.5 | Q9: =+P9/O9/T9*1000 -> 159.4405594 | R9: If | S9: 65 | T9: 2.75 | W9: 2 | X9: =+$X$7+W9*($X$17-$X$7)/10 -> 100 | Y9: 155.4489234 | AA9: 2 | AB9: =+$AB$7+AA9*($AB$17-$AB$7)/10 -> 100 | AC9: 2.860823773
H10: y | I10: (mm) | J10: 2.27 | O10: 240 | P10: =+P9/0.9*3.3 -> 104.5 | Q10: =+P10/O10/T10*1000 -> 140.4569892 | S10: 240 | T10: 3.1 | W10: 3 | X10: 117.5 | Y10: 153.4907376 | AA10: 3 | AB10: 117.5 | AC10: 2.903451256
D11: Rth | E11: (C/W) | F11: 11 | N11: A | O11: =Q9/(EXP(-O12*O9)) -> 167.1275237 | R11: D | S11: =LOG10(T9/S12)/LOG10(S9) -> 0.09171372109 | W11: 4 | X11: 135 | Y11: 151.557219 | AA11: 4 | AB11: 135 | AC11: 2.940657879
D12: Efficiency | E12: (%) | F12: 50 | N12: B | O12: =-LN(Q9/Q10)/(O9-O10) -> 0.0007243992522 | R12: C | S12: =10^S14 -> 1.875269386 | W12: 5 | X12: 152.5 | Y12: 149.6480569 | AA12: 5 | AB12: 152.5 | AC12: 2.973715834
S13: =+LOG10(S9)/LOG10(S10) -> 0.7616606984 | W13: 6 | X13: 170 | Y13: 147.7629445 | AA13: 6 | AB13: 170 | AC13: 3.003491686
S14: =(S13*LOG10(T10)-LOG10(T9))/(-1+S13) -> 0.2730636639 | W14: 7 | X14: 187.5 | Y14: 145.9015788 | AA14: 7 | AB14: 187.5 | AC14: 3.030603138
W15: 8 | X15: 205 | Y15: 144.0636606 | AA15: 8 | AB15: 205 | AC15: 3.055506506
W16: 9 | X16: 222.5 | Y16: 142.2488946 | AA16: 9 | AB16: 222.5 | AC16: 3.078548743
W17: 10 | X17: =+O10 -> 240 | Y17: 140.4569892 | AA17: 10 | AB17: =+S10 -> 240 | AC17: 3.1
C21: Supplier | D21: Type | E21: LS | F21: Code | G21: If | H21: Vf | I21: Rth | J21: Efficiency | K21: A | L21: B | M21: C | N21: D | O21: PAD1_X | P21: PAD1_Y | Q21: PAD2_X | R21: PAD2_Y
C22: =+F4 -> Nichia | D22: =+F5 -> SMD_3030 | E22: =+F6 -> NF2L757GT | F22: =+C22 & "-" & E22 -> Nichia-NF2L757GT | G22: =+F8 -> 180 | H22: =+F9 -> 3 | I22: =+F11 -> 11 | J22: =+F12 -> 50 | K22: =+O11 -> 167.1275237 | L22: =+O12 -> 0.0007243992522 | M22: =+S12 -> 1.875269386 | N22: =+S11 -> 0.09171372109 | O22: =+J5 -> 1.45 | P22: =+J6 -> 2.27 | Q22: =+J9 -> 0.48 | R22: =+J10 -> 2.27

Sheet Sheet1 (hidden)
F1: =COUNT(F4:F210) -> 11
B2: Supplier/App | C2: Product | D2: Code | E2: Code | F2: n | G2: b | H2: t | I2: L | J2: l | K2: delta
G3: (mm) | H3: (mm) | I3: (mm) | J3: (mm) | K3: (mm)
B4: G | C4: Plate | D4: P100x100x10 | E4: =B4& "-"&D4 -> G-P100x100x10 | F4: 0 | G4: 0.001 | H4: 100 | I4: 100 | J4: 0.001 | K4: 10
B5: G | C5: Plate | D5: P500x500x20 | E5: G-P500x500x20 | F5: 0 | G5: 0.001 | H5: 500 | I5: 500 | J5: 0.001 | K5: 20
B6: G | C6: HS | D6: S22x22x6 | E6: G-S22x22x6 | F6: 8 | G6: 2 | H6: 22 | I6: 22 | J6: 6 | K6: 2
B7: G | C7: HS | D7: S200x50x30 | E7: =B7& "-"&D7 -> G-S200x50x30 | F7: 11 | G7: 2.5 | H7: 200 | I7: 50 | J7: 30 | K7: 2.5
B8: G | C8: HS | D8: S290x80x40 | E8: =B8& "-"&D8 -> G-S290x80x40 | F8: 20 | G8: 2 | H8: 80 | I8: 290 | J8: 40 | K8: 4
B9: G | C9: HS | D9: S1000x42x29 | E9: =B9& "-"&D9 -> G-S1000x42x29 | F9: 2 | G9: 2 | H9: 1000 | I9: 42 | J9: 29 | K9: 0.7
B10: G | C10: HS | D10: S430x410x120 | E10: =B10& "-"&D10 -> G-S430x410x120 | F10: 32 | G10: 1 | H10: 410 | I10: 430 | J10: 120 | K10: 1
B11: G | C11: HS | D11: S510x430x220 | E11: =B11& "-"&D11 -> G-S510x430x220 | F11: 42 | G11: 1 | H11: 430 | I11: 510 | J11: 220 | K11: 1
B12: G | C12: HS | D12: C83x24x47 | E12: G-C83x24x47 | F12: 24 | G12: 1 | H12: 47 | I12: 110 | J12: 24 | K12: 1
B13: G | C13: HS | D13: C160x45x220 | E13: =B13& "-"&D13 -> G-C160x45x220 | F13: 28 | G13: 2 | H13: 220 | I13: 220 | J13: 45 | K13: 2
B14: G | C14: HS | D14: C240x150x45 | E14: =B14& "-"&D14 -> G-C240x150x45 | F14: 72 | G14: 2 | H14: 240 | I14: 470 | J14: 45 | K14: 2

Sheet DB_LSI (hidden)
B2: Supplier | C2: Type | D2: LS | E2: Code | F2: If | G2: Vf | H2: Rth | I2: Efficiency | J2: A | K2: B | L2: C | M2: D | N2: PAD1_X | O2: PAD1_Y | P2: PAD2_X | Q2: PAD2_Y
F3: (mA) | G3: (V) | H3: (C/W) | I3: %
B4: Nichia | C4: SMD_3030 | D4: NF2L757GT | E4: Nichia-NF2L757GT | F4: 180 | G4: 3 | H4: 11 | I4: 50 | J4: 167.1275237 | K4: 0.0007243992522 | L4: 1.875269386 | M4: 0.09171372109 | N4: 1.45 | O4: 2.27 | P4: 0.48 | Q4: 2.27
B5: Everlight | C5: SMD_3030 | D5: XI3030 | E5: Everlight-XI3030 | F5: 240 | G5: 3 | H5: 15 | I5: 50 | J5: 154.0523118 | K5: 0.002149148613 | L5: 2.838166624 | M5: 0.1634987323 | N5: 1.485 | O5: 2.3 | P5: 0.5 | Q5: 2.3
B6: Everlight | C6: SMD_5050 | D6: XI5050 | E6: Everlight-XI5050 | F6: 240 | G6: 16.66666667 | H6: 10 | I6: 50 | J6: 195.4378009 | K6: 0.002170980468 | L6: 10.21477108 | M6: 0.1244102733 | N6: 2.8 | O6: 3.05 | P6: 3.3 | Q6: 0.65
B7: Cree | C7: SMD | D7: XPG | E7: Cree-Xlamp-XPG | F7: 350 | G7: 2.9 | H7: 4 | I7: 50 | J7: 134.3298201 | K7: 0.0003176162501 | L7: 1.833182659 | M7: 0.07829674912 | N7: 1.3 | O7: 3.3 | P7: 1 | Q7: 3.3
B8: Cree | C8: SMD_3535 | D8: XP-L-HI | E8: Cree-Xlamp-XP-L-HI | F8: 3000 | G8: 2.95 | H8: 2.2 | I8: 50 | J8: 95.78289437 | K8: 8.324128757e-05 | L8: 1.270262557 | M8: 0.1211206856 | N8: 3.3 | O8: 1.3 | P8: 3.3 | Q8: 1
B9: Cree | C9: XPE | D9: XPE_white_CRI80 | E9: Cree-XPE_white_CRI80 | F9: 1000 | G9: 3 | H9: 9 | I9: 45 | J9: 103.2577333 | K9: 0.0005792512095 | L9: 1.415133739 | M9: 0.1310901863 | N9: 1 | O9: 3.3 | P9: 1.3 | Q9: 3.3
B10: Cree | C10: XPE | D10: XPE_Green | E10: Cree-XPE_Green | F10: 1000 | G10: 3 | H10: 15 | I10: 45 | J10: 116.3625149 | K10: 0.0008446874409 | L10: 1.50187432 | M10: 0.134383335 | N10: 1 | O10: 3.3 | P10: 1.3 | Q10: 3.3
B11: Cree | C11: XPE | D11: XPE_Red | E11: Cree-XPE_Red | F11: 700 | G11: 3 | H11: 8 | I11: 52.63157895 | J11: 127.2074132 | K11: 0.0008877608744 | L11: 0.7396486009 | M11: 0.1610523593 | N11: 1 | O11: 3.3 | P11: 1.3 | Q11: 3.3
B12: Citizen | C12: COB | D12: CLU056 | E12: Citizen-CLU056 | F12: 5750 | G12: 52 | H12: 0.22 | I12: 50 | J12: 204.0451138 | K12: 0.0001423391638 | L12: 19.08335193 | M12: 0.1298702209 | N12: 38 | O12: 19 | P12: 38 | Q12: 19
B13: Citizen | C13: COB | D13: CLU048 | E13: Citizen-CLU048 | F13: 4140 | G13: 52 | H13: 0.17 | I13: 50 | J13: 140.7430955 | K13: 0.000105102288 | L13: 17.28167923 | M13: 0.1490622108 | N13: 28 | O13: 14 | P13: 28 | Q13: 14
B14: Cree | C14: COB | D14: CXA3590 | E14: Cree-CXA3590 | F14: 3600 | G14: 41.6 | H14: 1 | I14: 50 | J14: 164.2112601 | K14: 0.000173725157 | L14: 8.706754571 | M14: 0.1909952902 | N14: 34.85 | O14: 34.85 | P14: 0.01 | Q14: 0.01
B15: Cree | C15: COB | D15: CXA3070 | E15: Cree-CXA3070 | F15: 2800 | G15: 38.5 | H15: 0.7 | I15: 50 | J15: 184.6318019 | K15: 0.0002437127719 | L15: 11.31077933 | M15: 0.1622470807 | N15: 27.35 | O15: 27.35 | P15: 0.01 | Q15: 0.01
B16: Cree | C16: COB | D16: CXA2540 | E16: Cree-CXA2540 | F16: 2100 | G16: 36.2 | H16: 0.7 | I16: 50 | J16: 154.5189313 | K16: 0.0002844120406 | L16: 15.28372787 | M16: 0.1231275645 | N16: 27.35 | O16: 27.35 | P16: 0.01 | Q16: 0.01
B17: Sunpu | C17: COB | D17: G17-4829MX | E17: Sunpu-G17-4829MX | F17: 1200 | G17: 36 | H17: 0.8 | I17: 50 | J17: 224.6894941 | K17: 0.0006654230802 | L17: 4.414052432 | M17: 0.313963748 | N17: 19 | O17: 19 | P17: 0.01 | Q17: 0.01
B18: Sunpu | C18: COB | D18: G17-4427MX | E18: Sunpu-G17-4427MX | F18: 300 | G18: 145 | H18: 0.8 | I18: 50 | J18: 259.4967232 | K18: 0.003217094805 | L18: 23.14448228 | M18: 0.3286034785 | N18: 19 | O18: 19 | P18: 0.01 | Q18: 0.01
B19: Everlight | C19: 2835 | D19: 2835HE | E19: Everlight-2835HE-R80-0.2W | F19: 180 | G19: 2.85 | H19: 30 | I19: 50 | J19: 238.1306751 | K19: 0.003456799325 | L19: 1.576248486 | M19: 0.1333257381 | N19: 2 | O19: 2 | P19: 0.9 | Q19: 2
B20: Everlight | C20: 2835 | D20: 3020S | E20: Everlight-3020S-R80-0.2W | F20: 75 | G20: 3.25 | H20: 50 | I20: 50 | J20: 164.7868825 | K20: 0.003805501026 | L20: 2.263213667 | M20: 0.07287022536 | N20: 1.5 | O20: 1.4 | P20: 0.8 | Q20: 1.4
B21: Everlight | C21: 2835 | D21: 2835 | E21: Everlight-2835-R80-0.2W | F21: 60 | G21: 3.05 | H21: 50 | I21: 50 | J21: 193.8176285 | K21: 0.004943894319 | L21: 1.600206356 | M21: 0.1493945044 | N21: 2 | O21: 2 | P21: 0.9 | Q21: 2
B22: Everlight | C22: 0.2 | D22: 5630D-HE | E22: Everlight-5630D-HE-R80-0.2W | F22: 180 | G22: 2.75 | H22: 21 | I22: 50 | J22: 247.8712829 | K22: 0.002512291229 | L22: 1.866674965 | M22: 0.1013706233 | N22: 3.37 | O22: 1.6 | P22: 1.12 | Q22: 1.6
B23: Everlight | C23: 0.5 | D23: 5630B | E23: Everlight-5630B-R75-0.5W | F23: 180 | G23: 3.15 | H23: 21 | I23: 50 | J23: 140.7155232 | K23: 0.002164329552 | L23: 1.862294302 | M23: 0.1042453465 | N23: 2.1 | O23: 1.5 | P23: 2.4 | Q23: 1
B24: Everlight | C24: 0.5 | D24: 2835HV | E24: Everlight-2835HV-R80-0.5W | F24: 40 | G24: 18.5 | H24: 21 | I24: 50 | J24: 180.6050134 | K24: 0.01245129479 | L24: 14.43242258 | M24: 0.06657499389 | N24: 2 | O24: 2 | P24: 0.9 | Q24: 2
B25: Everlight | C25: 0.5 | D25: 2835 | E25: Everlight-2835-R80-0.5W | F25: 180 | G25: 3.2 | H25: 21 | I25: 50 | J25: 214.533535 | K25: 0.002878741236 | L25: 1.005172156 | M25: 0.2402492795 | N25: 2 | O25: 2 | P25: 0.9 | Q25: 2
B26: Everlight | C26: 0.5 | D26: 5630B | E26: Everlight-5630B-R75-0.5W | F26: 180 | G26: 3.15 | H26: 21 | I26: 50 | J26: 140.7155232 | K26: 0.002164329552 | L26: 1.862294302 | M26: 0.1042453465 | N26: 2.4 | O26: 1 | P26: 2.1 | Q26: 1.5
B27: Everlight | C27: 1 | D27: A22_HV | E27: Everlight-A22_HV-R80-1W | F27: 150 | G27: 15 | H27: 9 | I27: 50 | J27: 168.7732076 | K27: 0.001404681908 | L27: 9.990474514 | M27: 0.09148098448 | N27: 3.8 | O27: 3.9 | P27: 2.8 | Q27: 3.2
B28: Everlight | C28: 0.5 | D28: A22 | E28: Everlight-A22-R80-0.5W | F28: 150 | G28: 3.4 | H28: 9 | I28: 50 | J28: 179.0313226 | K28: 0.003954676716 | L28: 0.6203393491 | M28: 0.3210951567 | N28: 3.8 | O28: 3.9 | P28: 2.8 | Q28: 3.2
B29: Everlight | C29: 4 | D29: XI5050 | E29: Everlight-XI5050-R80-4W | F29: 240 | G29: 15 | H29: 10 | I29: 50 | J29: 177.5596041 | K29: 0.001598341236 | L29: 10.51941477 | M29: 0.1172326268 | N29: 2.8 | O29: 3.05 | P29: 0.65 | Q29: 3.3
B30: Everlight | C30: 8 | D30: XI9595 | E30: Everlight-XI9595-R80-8W | F30: 200 | G30: 44 | H30: 5 | I30: 50 | J30: 142.4149613 | K30: 0.0004094269355 | L30: 24.73844909 | M30: 0.08591462871 | N30: 8 | O30: 6 | P30: 8 | Q30: 2.46
B31: Everlight | C31: 1 | D31: ELSWF_3535 | E31: Everlight-ELSWF_3535-R80-1W | F31: 1000 | G31: 44 | H31: 5 | I31: 50 | J31: 163.6368721 | K31: 0.0007191504843 | L31: 0.5184329874 | M31: 0.2785119085 | N31: 1.3 | O31: 3.1 | P31: 1.36 | Q31: 3.1
B32: Everlight | C32: 1 | D32: 2835 | E32: Everlight-2835-R80-1W | F32: 200 | G32: 6.2 | H32: 17 | I32: 50 | J32: 200.1245793 | K32: 0.001951727504 | L32: 3.514784399 | M32: 0.1148763069 | N32: 2 | O32: 2 | P32: 0.9 | Q32: 2
B33: Everlight | C33: 1 | D33: XI3535 | E33: Everlight-XI3535-R80-1W | F33: 350 | G33: 3.4 | H33: 15 | I33: 50 | J33: 117.6308075 | K33: 0.0006387285921 | L33: 1.986688724 | M33: 0.08402036836 | N33: 2.055 | O33: 2.5 | P33: 0.42 | Q33: 2.5
B34: Everlight | C34: 1 | D34: XI3030-2S | E34: Everlight-XI3030-2S-R80-1W | F34: 240 | G34: 3.4 | H34: 15 | I34: 50 | J34: 135.5941521 | K34: 0.001275689378 | L34: 3.74469366 | M34: 0.1069641163 | N34: 1.45 | O34: 2.3 | P34: 0.5 | Q34: 2.3
B35: Everlight | C35: 1 | D35: XI3535-6V | E35: Everlight-XI3535-6V-R80-1W | F35: 240 | G35: 6.5 | H35: 15 | I35: 50 | J35: 136.0832045 | K35: 0.001054771868 | L35: 3.360027008 | M35: 0.1276585543 | N35: 2.055 | O35: 2.66 | P35: 0.42 | Q35: 2.66
B36: Everlight | C36: 25 | D36: XUAN1919 | E36: Everlight-XUAN1919-R80-25W | F36: 1440 | G36: 36 | H36: 0.46 | I36: 50 | J36: 139.087984 | K36: 0.0001819350048 | L36: 18.47280671 | M36: 0.09816560785 | N36: 19 | O36: 19 | P36: 0.001 | Q36: 0.001
B37: Everlight | C37: 8 | D37: XUAN1313 | E37: Everlight-XUAN1313-R80-8W | F37: 480 | G37: 36 | H37: 1.5 | I37: 50 | J37: 156.2045758 | K37: 0.0007625229326 | L37: 23.82735767 | M37: 0.07137605489 | N37: 13.5 | O37: 13.5 | P37: 0.001 | Q37: 0.001
B38: Everlight | C38: 15 | D38: JU2024 | E38: Everlight-JU2024-R80-15W | F38: 550 | G38: 36 | H38: 2.4 | I38: 50 | J38: 143.6740396 | K38: 0.0004018350022 | L38: 14.20042657 | M38: 0.1191735043 | N38: 20 | O38: 24 | P38: 0.001 | Q38: 0.001
B39: Everlight | C39: 10 | D39: JU1215 | E39: Everlight-JU1215-R80-10W | F39: 800 | G39: 18 | H39: 2.4 | I39: 50 | J39: 131.897775 | K39: 0.0002738120587 | L39: 10.72962725 | M39: 0.08068409493 | N39: 15 | O39: 12 | P39: 0.001 | Q39: 0.001
B40: Citizen | C40: 2 | D40: CLU025 | E40: Citizen-CLU025-R80-2W | F40: 540 | G40: 8.9 | H40: 5.3 | I40: 50 | J40: 155.5439066 | K40: 0.0005637217882 | L40: 7.014558071 | M40: 0.0425233333 | N40: 13.5 | O40: 13.5 | P40: 0.001 | Q40: 0.001
B41: Citizen | C41: 11 | D41: CLU701 | E41: Citizen-CLU701-R80-11W | F41: 460 | G41: 52 | H41: 1.6 | I41: 50 | J41: 128.4846322 | K41: 0.0002761953774 | L41: 16.81965283 | M41: 0.1060416374 | N41: 13.5 | O41: 13.5 | P41: 0.001 | Q41: 0.001
B42: Citizen | C42: 12 | D42: CLU028 | E42: Citizen-CLU028-R97-12W | F42: 920 | G42: 34.6 | H42: 0.91 | I42: 45 | J42: 135.4859688 | K42: 0.0005690597448 | L42: 11.87949185 | M42: 0.1816210072 | N42: 13.5 | O42: 13.5 | P42: 0.001 | Q42: 0.001
B43: Citizen | C43: 12 | D43: CLU038 | E43: Citizen-CLU038-R97-25W | F43: 1840 | G43: 34.6 | H43: 0.51 | I43: 45 | J43: 123.104336 | K43: 0.0001836223614 | L43: 18.23272162 | M43: 0.1027633753 | N43: 19 | O43: 19 | P43: 0.001 | Q43: 0.001
B44: Citizen | C44: 36 | D44: CLU038 | E44: Citizen-CLU038-R80-36W | F44: 2300 | G44: 52 | H44: 0.42 | I44: 50 | J44: 177.0399893 | K44: 0.0001925804206 | L44: 14.33058686 | M44: 0.133346175 | N44: 19 | O44: 19 | P44: 0.001 | Q44: 0.001
B45: Citizen | C45: 84 | D45: CLU046 | E45: Citizen-CLU046-R80-84W | F45: 4140 | G45: 104 | H45: 0.26 | I45: 50 | J45: 175.4448189 | K45: 0.000149580415 | L45: 7.272748318 | M45: 0.2661787782 | N45: 28 | O45: 28 | P45: 0.001 | Q45: 0.001
B46: Citizen | C46: 56 | D46: CLU048 | E46: Citizen-CLU048-R97-56W | F46: 2760 | G46: 52 | H46: 0.25 | I46: 45 | J46: 129.9819078 | K46: 0.0001241169513 | L46: 22.69197496 | M46: 0.1172326268 | N46: 28 | O46: 28 | P46: 0.001 | Q46: 0.001
B47: Citizen | C47: 84 | D47: CLU048 | E47: Citizen-CLU048-R80-84W | F47: 4140 | G47: 52 | H47: 0.17 | I47: 50 | J47: 161.6855016 | K47: 8.695699125e-05 | L47: 25.46967245 | M47: 0.1012833358 | N47: 28 | O47: 28 | P47: 0.001 | Q47: 0.001
B48: Citizen | C48: 168 | D48: CLU058 | E48: Citizen-CLU058-R80-168W | F48: 4140 | G48: 52 | H48: 0.1 | I48: 50 | J48: 165.5111213 | K48: 9.38779476e-05 | L48: 44.35026117 | M48: 0.1195070945 | N48: 38 | O48: 38 | P48: 0.001 | Q48: 0.001
B49: Citizen | C49: 168 | D49: CLU056 | E49: Citizen-CLU056-R80-168W | F49: 4140 | G49: 104 | H49: 0.15 | I49: 50 | J49: 177.5879664 | K49: 0.0001513142023 | L49: 14.04942078 | M49: 0.2707440607 | N49: 38 | O49: 38 | P49: 0.001 | Q49: 0.001
B50: Citizen | C50: 242 | D50: CLU550 | E50: Citizen-CLU550-R80-242W | F50: 4680 | G50: 104 | H50: 0.1 | I50: 50 | J50: 178.0367941 | K50: 0.0001140051577 | L50: 17.49763352 | M50: 0.2296190758 | N50: 38 | O50: 38 | P50: 0.001 | Q50: 0.001
B51: Cree | C51: 0.3 | D51: ML-B | E51: Cree-ML-B-R80-0.3W | F51: 175 | G51: 3.5 | H51: 25 | I51: 50 | J51: 119.2978886 | K51: 0.003660212921 | L51: 1.747190745 | M51: 0.1451185289 | N51: 3.2 | O51: 2.3 | P51: 0.9 | Q51: 3.2 | R51: -13
B52: Cree | C52: 0.3 | D52: ML-C | E52: Cree-ML-C-R80-0.3W | F52: 350 | G52: 3.5 | H52: 13 | I52: 50 | J52: 166.7870954 | K52: 0.003601241556 | L52: 1.60664959 | M52: 0.1469545714 | N52: 3.2 | O52: 2.3 | P52: 0.9 | Q52: 3.2 | R52: -13
B53: Cree | C53: 0.3 | D53: ML-E | E53: Cree-ML-E-R80-0.3W | F53: 500 | G53: 3.2 | H53: 11 | I53: 50 | J53: 109.6317967 | K53: 0.001122782034 | L53: 1.597653038 | M53: 0.1374924922 | N53: 3.2 | O53: 2.3 | P53: 0.9 | Q53: 3.2 | R53: -13
B54: Cree | C54: 1 | D54: MX-3 | E54: Cree-MX-3-R80-1W | F54: 500 | G54: 3.7 | H54: 11 | I54: 50 | J54: 145.4734969 | K54: 0.001742833197 | L54: 2.062506199 | M54: 0.09577920256 | N54: 3.5 | O54: 3.9 | P54: 1.1 | Q54: 3.9 | R54: -2.7
B55: Cree | C55: 1 | D55: MX-3S | E55: Cree-MX-3S-R80-1W | F55: 175 | G55: 3.2 | H55: 11 | I55: 50 | J55: 121.081269 | K55: 0.003478470427 | L55: 5.400195473 | M55: 0.1443899093 | N55: 3.5 | O55: 3.9 | P55: 1.1 | Q55: 3.9 | R55: -13
B56: Cree | C56: 1 | D56: MX-6 | E56: Cree-MX-6-R80-1W | F56: 1000 | G56: 3.7 | H56: 5 | I56: 50 | J56: 117.3036806 | K56: 0.0006168693099 | L56: 1.51447365 | M56: 0.142777131 | N56: 3.5 | O56: 3.9 | P56: 1.1 | Q56: 3.9 | R56: -3.3
B57: Cree | C57: 1 | D57: XB-D | E57: Cree-XB-D-R80-1W | F57: 1000 | G57: 2.9 | H57: 6.5 | I57: 50 | J57: 139.5500983 | K57: 0.0006203252243 | L57: 1.6618323 | M57: 0.09504887364 | N57: 0.92 | O57: 2.29 | P57: 0.66 | Q57: 2.29 | R57: -2.5
B58: Cree | C58: 3 | D58: XB-H | E58: Cree-XB-H-R80-3W | F58: 1500 | G58: 2.9 | H58: 4 | I58: 50 | J58: 154.2405315 | K58: 0.0003798716379 | L58: 1.424644979 | M58: 0.1084993705 | N58: 0.92 | O58: 2.29 | P58: 0.72 | Q58: 2.29 | R58: -2.2
B59: Cree | C59: 4 | D59: XHP35 | E59: Cree-XHP35-R80-4W | F59: 1050 | G59: 11.3 | H59: 1.8 | I59: 50 | J59: 162.8706498 | K59: 0.0004514818546 | L59: 6.885942878 | M59: 0.08455553233 | N59: 1.3 | O59: 3.3 | P59: 1 | Q59: 3.3 | R59: -8
B60: Cree | C60: 0.2 | D60: XH-B | E60: Cree-XH-B-R80-0.2W | F60: 175 | G60: 3.1 | H60: 45 | I60: 50 | J60: 142.4613656 | K60: 0.003151557442 | L60: 1.905295381 | M60: 0.1177446499 | N60: 1.7 | O60: 3 | P60: 0.8 | Q60: 3 | R60: -2
B61: Cree | C61: 0.2 | D61: XH-G | E61: Cree-XH-G-R80-0.2W | F61: 350 | G61: 2.9 | H61: 20 | I61: 50 | J61: 171.7164727 | K61: 0.002067542685 | L61: 1.267884874 | M61: 0.1851685912 | N61: 1.7 | O61: 3 | P61: 0.8 | Q61: 3 | R61: -1.2
B62: Cree | C62: 3 | D62: XM-L | E62: Cree-XM-L-R80-3W | F62: 350 | G62: 2.9 | H62: 2.5 | I62: 50 | J62: 124.7228408 | K62: 0.0002007174975 | L62: 1.514917117 | M62: 0.09912105708 | N62: 2.78 | O62: 4.78 | P62: 1 | Q62: 4.78 | R62: -2.1
B63: Cree | C63: 3 | D63: XM-L-HV | E63: Cree-XM-L-HV-R80-3W | F63: 125 | G63: 46 | H63: 3.5 | I63: 50 | J63: 135.8368863 | K63: 0.003202903178 | L63: 36.4580096 | M63: 0.06276544104 | N63: 2.78 | O63: 4.78 | P63: 1 | Q63: 4.78 | R63: -35
B64: Cree | C64: 5 | D64: XM-L2 | E64: Cree-XM-L2-R80-5W | F64: 3000 | G64: 3.3 | H64: 2.5 | I64: 50 | J64: 154.264305 | K64: 0.000240899738 | L64: 1.473105698 | M64: 0.1007385146 | N64: 2.78 | O64: 4.78 | P64: 1 | Q64: 4.78 | R64: -1.6
B65: Cree | C65: 5 | D65: XP-C | E65: Cree-XP-C-R80-1W | F65: 500 | G65: 3.3 | H65: 12 | I65: 50 | J65: 125.9124546 | K65: 0.001262598883 | L65: 0.7344633858 | M65: 0.2512432124 | N65: 1.3 | O65: 3.3 | P65: 1 | Q65: 3.3 | R65: -4
B66: Cree | C66: 3 | D66: XP-E | E66: Cree-XP-E-R80-3W | F66: 1000 | G66: 3.1 | H66: 9 | I66: 50 | J66: 124.5665732 | K66: 0.0006209455111 | L66: 1.415133739 | M66: 0.1310901863 | N66: 1.3 | O66: 3.3 | P66: 1 | Q66: 3.3 | R66: -3
B67: Cree | C67: 3 | D67: XP-E-HEW | E67: Cree-XP-E-HEW-R80-3W | F67: 1000 | G67: 3.1 | H67: 6 | I67: 50 | J67: 144.2611001 | K67: 0.0004368016191 | L67: 1.919336675 | M67: 0.07624406631 | N67: 1.3 | O67: 3.3 | P67: 1 | Q67: 3.3 | R67: -3
B68: Cree | C68: 3 | D68: XP-E2 | E68: Cree-XP-E2-R80-3W | F68: 1000 | G68: 3.1 | H68: 9 | I68: 50 | J68: 153.7785907 | K68: 0.0007039468933 | L68: 1.828135902 | M68: 0.07876735869 | N68: 1.3 | O68: 3.3 | P68: 1 | Q68: 3.3 | R68: -2.3
B69: Cree | C69: 5 | D69: XP-G | E69: Cree-XP-G-R80-5W | F69: 1500 | G69: 3.1 | H69: 9 | I69: 50 | J69: 143.8552571 | K69: 0.0003318908494 | L69: 1.833182659 | M69: 0.07829674912 | N69: 1.3 | O69: 3.3 | P69: 1 | Q69: 3.3 | R69: -3.9
B70: Cree | C70: 5 | D70: XP-G2 | E70: Cree-XP-G2-R80-5W | F70: 1500 | G70: 3.1 | H70: 4 | I70: 50 | J70: 157.8565052 | K70: 0.0003057422428 | L70: 1.858771812 | M70: 0.0699399349 | N70: 1.3 | O70: 3.3 | P70: 1 | Q70: 3.3 | R70: -1.8
B71: Cree | C71: 6 | D71: XP-G3 | E71: Cree-XP-G3-R80-6W | F71: 2000 | G71: 3.1 | H71: 3 | I71: 50 | J71: 151.9079308 | K71: 0.0002702967084 | L71: 1.737904634 | M71: 0.07442994626 | N71: 1.3 | O71: 3.3 | P71: 1 | Q71: 3.3 | R71: -1.3
B72: Cree | C72: 9 | D72: XP-L | E72: Cree-XP-L-R80-9W | F72: 3000 | G72: 3.1 | H72: 2.2 | I72: 50 | J72: 180.836105 | K72: 0.0001875809229 | L72: 1.348282891 | M72: 0.1125520313 | N72: 1.3 | O72: 3.3 | P72: 1 | Q72: 3.3 | R72: -2
B73: Cree | C73: 1 | D73: XQ-A | E73: Cree-XQ-A-R80-1W | F73: 300 | G73: 3 | H73: 20 | I73: 50 | J73: 123.7389249 | K73: 0.002011997134 | L73: 1.877047552 | M73: 0.09086399915 | N73: 0.65 | O73: 1.6 | P73: 1.65 | Q73: 1.6 | R73: -2.8
B74: Cree | C74: 1 | D74: XQ-B | E74: Cree-XQ-B-R80-1W | F74: 300 | G74: 3 | H74: 17 | I74: 50 | J74: 127.2687122 | K74: 0.001634780657 | L74: 2.187009175 | M74: 0.07213040404 | N74: 0.65 | O74: 1.6 | P74: 1.65 | Q74: 1.6 | R74: -32
B75: Cree | C75: 2 | D75: XQ-D | E75: Cree-XQ-D-R80-2W | F75: 700 | G75: 3 | H75: 7.5 | I75: 50 | J75: 113.4993548 | K75: 0.0005948770101 | L75: 1.840376273 | M75: 0.08901297625 | N75: 0.65 | O75: 1.6 | P75: 1.65 | Q75: 1.6 | R75: -3
B76: Cree | C76: 3 | D76: XQ-E | E76: Cree-XQ-E-R80-3W | F76: 1000 | G76: 3 | H76: 6 | I76: 50 | J76: 127.3033056 | K76: 0.000538949287 | L76: 1.849700721 | M76: 0.0767654515 | N76: 0.65 | O76: 1.6 | P76: 1.65 | Q76: 1.6 | R76: -2.3
B77: Cree | C77: 2 | D77: XR-C | E77: Cree-XR-C-R75-2W | F77: 500 | G77: 3.5 | H77: 12 | I77: 50 | J77: 102.1957646 | K77: 0.00117527112 | L77: 2.068860172 | M77: 0.08480424829 | N77: 2.75 | O77: 3.7 | P77: 0.6 | Q77: 5 | R77: -4
B78: Cree | C78: 2 | D78: XR-C | E78: Cree-XR-C-R75-2W | F78: 1000 | G78: 3.5 | H78: 12 | I78: 50 | J78: 111.2823358 | K78: 0.0007171448455 | L78: 2.007015878 | M78: 0.08488889759 | N78: 2.75 | O78: 3.7 | P78: 0.6 | Q78: 5 | R78: -4
B79: Cree | C79: 9 | D79: MC-E | E79: Cree-MC-E-R80-9W | F79: 1000 | G79: 3.5 | H79: 3 | I79: 50 | J79: 92.86668117 | K79: 0.0006591950891 | L79: 1.420111915 | M79: 0.1332665309 | N79: 4 | O79: 2.84 | P79: 0.6 | Q79: 1.16 | R79: -4
B80: Cree | C80: 7 | D80: MHB-A | E80: Cree-MHB-A-R80-7W | F80: 175 | G80: 36 | H80: 5.5 | I80: 50 | J80: 172.4513328 | K80: 0.003158993067 | L80: 25.61201146 | M80: 0.07873746487 | N80: 2.78 | O80: 4.78 | P80: 1 | Q80: 3.6 | R80: -16
B81: Cree | C81: 13 | D81: MHD-E | E81: Cree-MHD-E-R80-13W | F81: 350 | G81: 36 | H81: 3.2 | I81: 50 | J81: 157.9002672 | K81: 0.001209743394 | L81: 18.40389753 | M81: 0.1282020744 | N81: 3.9 | O81: 6.76 | P81: 1.4 | Q81: 6.76 | R81: -15
B82: Cree | C82: 19 | D82: MHD-G | E82: Cree-MHD-G-R80-19W | F82: 500 | G82: 36 | H82: 2.6 | I82: 50 | J82: 153.5862851 | K82: 0.0009976297123 | L82: 17.76700334 | M82: 0.1224366621 | N82: 3.9 | O82: 6.76 | P82: 1.4 | Q82: 6.76 | R82: -17
B83: Cree | C83: 15 | D83: MK-R | E83: Cree-MK-R-R80-15W | F83: 1250 | G83: 18 | H83: 1.7 | I83: 50 | J83: 140.2585875 | K83: 0.0002415794266 | L83: 7.349074719 | M83: 0.07098286105 | N83: 3.9 | O83: 6.76 | P83: 1.4 | Q83: 6.76 | R83: -8
B84: Cree | C84: 25 | D84: MT-G | E84: Cree-MT-G-R77-25W | F84: 700 | G84: 36 | H84: 1.5 | I84: 50 | J84: 115.705528 | K84: 0.0009635931991 | L84: 22.62558849 | M84: 0.07517953794 | N84: 6 | O84: 8.9 | P84: 1.9 | Q84: 8.9 | R84: -27
B85: Cree | C85: 18.5 | D85: MT-G2 | E85: Cree-MT-G2-R80-18.5W | F85: 500 | G85: 36 | H85: 1.5 | I85: 50 | J85: 133.3826711 | K85: 0.00101063826 | L85: 22.62485716 | M85: 0.07914718496 | N85: 6 | O85: 8.9 | P85: 1.9 | Q85: 8.9 | R85: -26
B86: Cree | C86: 19 | D86: XHP50 | E86: Cree-XHP50-R80-19W | F86: 1500 | G86: 12 | H86: 1.2 | I86: 50 | J86: 147.8380251 | K86: 0.0002921332423 | L86: 6.473540098 | M86: 0.08771437553 | N86: 2.78 | O86: 4.78 | P86: 1 | Q86: 4.78 | R86: -9
B87: Cree | C87: 32 | D87: XHP70 | E87: Cree-XHP70-R80-32W | F87: 2400 | G87: 12 | H87: 0.9 | I87: 50 | J87: 156.310103 | K87: 0.0002366353192 | L87: 5.479789104 | M87: 0.1078032895 | N87: 3.9 | O87: 6.76 | P87: 1.4 | Q87: 6.76 | R87: -8.5
B88: Cree | C88: 13 | D88: XM-L | E88: Cree-XM-L-R80-13W | F88: 1000 | G88: 12 | H88: 2.5 | I88: 50 | J88: 111.4309814 | K88: 0.0007913848328 | L88: 5.716515252 | M88: 0.1193232526 | N88: 2.78 | O88: 4.78 | P88: 1 | Q88: 4.78 | R88: -12
B89: Cree | C89: 13 | D89: XM-L2 | E89: Cree-XM-L2-R80-13W | F89: 1000 | G89: 12 | H89: 2.5 | I89: 50 | J89: 131.9561919 | K89: 0.000562509242 | L89: 7.312543609 | M89: 0.07876735869 | N89: 2.78 | O89: 4.78 | P89: 1 | Q89: 4.78 | R89: -10
B90: Cree | C90: 20 | D90: CXA1310 | E90: Cree-CXA1310-R80-20W | F90: 525 | G90: 36 | H90: 2 | I90: 50 | J90: 131.9772222 | K90: 0.0009002172168 | L90: 21.80589598 | M90: 0.08367545922 | N90: 13.35 | O90: 13.35 | P90: 0.001 | Q90: 0.001
B91: Cree | C91: 33 | D91: CXA1520 | E91: Cree-CXA1520-R80-33W | F91: 900 | G91: 35 | H91: 2 | I91: 50 | J91: 138.3382065 | K91: 0.0005596621868 | L91: 22.21856076 | M91: 0.07312127243 | N91: 15.85 | O91: 15.85 | P91: 0.001 | Q91: 0.001
B92: Cree | C92: 78 | D92: CXA1850 | E92: Cree-CXA1850-R80-78W | F92: 2100 | G92: 35 | H92: 0.6 | I92: 50 | J92: 131.0117201 | K92: 0.0001946692801 | L92: 18.97371041 | M92: 0.08372422417 | N92: 17.85 | O92: 17.85 | P92: 0.001 | Q92: 0.001
B93: Cree | C93: 130 | D93: CXA2590 | E93: Cree-CXA2590-R80-130W | F93: 1800 | G93: 69 | H93: 0.3 | I93: 50 | J93: 137.6680887 | K93: 0.000238355078 | L93: 45.45564007 | M93: 0.05781932239 | N93: 23.85 | O93: 23.85 | P93: 0.001 | Q93: 0.001
B94: Cree | C94: 150 | D94: CXA3090 | E94: Cree-CXA3090-R80-150W | F94: 1800 | G94: 72 | H94: 0.6 | I94: 50 | J94: 161.2529846 | K94: 0.000332300893 | L94: 19.87840843 | M94: 0.1909952902 | N94: 34.85 | O94: 34.85 | P94: 0.001 | Q94: 0.001
B95: Cree | C95: 24 | D95: CXB1310 | E95: Cree-CXB1310-R80-24W | F95: 350 | G95: 33 | H95: 3 | I95: 50 | J95: 142.0254469 | K95: 0.0004938654401 | L95: 25.77820884 | M95: 0.04216129453 | N95: 13.35 | O95: 13.35 | P95: 0.001 | Q95: 0.001
B96: Cree | C96: 49 | D96: CXB1520 | E96: Cree-CXB1520-R80-49W | F96: 1400 | G96: 33 | H96: 2.6 | I96: 50 | J96: 156.1633602 | K96: 0.0002622858571 | L96: 24.99709183 | M96: 0.04469277322 | N96: 15.85 | O96: 15.85 | P96: 0.001 | Q96: 0.001
B97: Cree | C97: 53 | D97: CXB1830 | E97: Cree-CXB1830-R80-53W | F97: 1400 | G97: 35 | H97: 1 | I97: 50 | J97: 188.9473358 | K97: 0.0003636711997 | L97: 16.28503052 | M97: 0.1144571711 | N97: 17.85 | O97: 17.85 | P97: 0.001 | Q97: 0.001
B98: Cree | C98: 79 | D98: CXB2540 | E98: Cree-CXB2540-R80-79W | F98: 2100 | G98: 34.8 | H98: 0.7 | I98: 50 | J98: 189.9977261 | K98: 0.0003006632673 | L98: 18.26909246 | M98: 0.09201780212 | N98: 23.85 | O98: 23.85 | P98: 0.001 | Q98: 0.001
B99: Cree | C99: 107 | D99: CXB3070 | E99: Cree-CXB3070-R80-107W | F99: 2800 | G99: 34.8 | H99: 0.4 | I99: 50 | J99: 243.8249038 | K99: 0.0002961979512 | L99: 14.66073352 | M99: 0.1189924124 | N99: 27.35 | O99: 27.35 | P99: 0.001 | Q99: 0.001
B100: Cree | C100: 137 | D100: CXB3590 | E100: Cree-CXB3590-R80-137W | F100: 1800 | G100: 72 | H100: 0.3 | I100: 50 | J100: 211.5810494 | K100: 0.0003507782369 | L100: 36.64965109 | M100: 0.09524046443 | N100: 34.85 | O100: 34.85 | P100: 0.001 | Q100: 0.001

Sheet DB_METAL (hidden)
F1: =COUNT(F4:F19) -> 10
B2: Supplier | C2: Type | D2: Mat | E2: Code | F2: k
F3: (W/mK)
B4: G | C4: solder paste | D4: AgSP | E4: =D4& "-"&B4 -> AgSP-G | F4: 10
B5: G | C5: SAC | D5: SAC | E5: =D5& "-"&B5 -> SAC-G | F5: 58
B6: G | C6: Cu | D6: Cu_pure | E6: =D6& "-"&B6 -> Cu_pure-G | F6: 380
B7: Extruded | C7: Al | D7: Al-6063 | E7: =D7& "-"&B7 -> Al-6063-Extruded | F7: 170
B8: G | C8: Al | D8: Al | E8: =D8& "-"&B8 -> Al-G | F8: 164
B9: General | C9: solder paste | D9: AgSP | E9: =B9& "-"&D9 -> General-AgSP | F9: 10
B10: General | C10: SAC | D10: SAC | E10: General-SAC | F10: 58
B11: General | C11: Al | D11: Al | E11: General-Al | F11: 164
B12: General | C12: Cu | D12: Cu_pure | E12: General-Cu_pure | F12: 380
B13: Extruded | C13: Al | D13: Al-A6063 | E13: Extruded-Al-A6063 | F13: 170

Sheet DB_PCB (hidden)
F1: =COUNT(F4:F18) -> 10
B2: Supplier | C2: Type | D2: Mat | E2: Code | F2: k
F3: (W/mK)
B4: G | C4: MCPCB | D4: Ideal-MCPCB | E4: =D4& "-"&B4 -> Ideal-MCPCB-G | F4: 33.73
B5: G | C5: FR4 | D5: Ideal-FR4 | E5: =D5& "-"&B5 -> Ideal-FR4-G | F5: 0.2
B6: G | C6: Ceramic | D6: 99Ceramic(AlO)-Ideal | E6: =D6& "-"&B6 -> 99Ceramic(AlO)-Ideal-G | F6: 31
B7: G | C7: Ceramic | D7: 95Ceramic(AlO)-Ideal | E7: =D7& "-"&B7 -> 95Ceramic(AlO)-Ideal-G | F7: 22
B8: G | C8: Ceramic | D8: Ceramic(AlN) | E8: =D8& "-"&B8 -> Ceramic(AlN)-G | F8: 180
B9: General | C9: MCPCB | D9: Ideal-MCPCB | E9: =B9& "-"&D9 -> General-Ideal-MCPCB | F9: 33.73
B10: General | C10: FR4 | D10: Ideal-FR4 | E10: General-Ideal-FR4 | F10: 0.2
B11: General | C11: Ceramic | D11: 99Ceramic(AlO)-Ideal | E11: General-99Ceramic(AlO)-Ideal | F11: 31
B12: General | C12: Ceramic | D12: 95Ceramic(AlO)-Ideal | E12: General-95Ceramic(AlO)-Ideal | F12: 22
B13: General | C13: Ceramic | D13: Ceramic(AlN) | E13: General-Ceramic(AlN) | F13: 180

Sheet DB_TIM (hidden)
F1: =COUNT(F4:F19) -> 5
B2: Supplier | C2: Type | D2: Mat | E2: Code | F2: k
F3: (W/mK)
B4: CS | C4: TIM | D4: DSTape | E4: =B4& "-"&D4 -> CS-DSTape | F4: 1.5
B5: Eporite | C5: TIM | D5: TIM1101 | E5: Eporite-TIM1101 | F5: 2.56
B6: Eporite | C6: TIM | D6: TIM2001 | E6: =B6& "-"&D6 -> Eporite-TIM2001 | F6: 2
B7: Eporite | C7: TIM | D7: TIM3101 | E7: =B7& "-"&D7 -> Eporite-TIM3101 | F7: 6
B8: Eporite | C8: TIM | D8: TIM0001 | E8: =B8& "-"&D8 -> Eporite-TIM0001 | F8: 2

Sheet DB_DRV (hidden)
F1: =COUNT(F4:F170) -> 2
B2: Supplier | C2: Type | D2: Mat | E2: Code | F2: Q
F3: W
B4: DRV | C4: Driver | D4: Test1 | E4: =B4& "-"&D4 -> DRV-Test1 | F4: 2 | H4: 輸入：散熱功率＝總功率＊（1-效率）
B5: DRV | C5: Driver | D5: Test0 | E5: =B5& "-"&D5 -> DRV-Test0 | F5: 0

Sheet DB_HS (hidden)
F1: =COUNT(F4:F167) -> 32
B2: Supplier/App | C2: Product | D2: Code | E2: Code | F2: n | G2: b | H2: t | I2: L | J2: l | K2: delta
G3: (mm) | H3: (mm) | I3: (mm) | J3: (mm) | K3: (mm)
B4: G | C4: Plate | D4: P100x100x10 | E4: G-P100x100x10-7W | F4: 0 | G4: 0.001 | H4: 100 | I4: 100 | J4: 0.001 | K4: 10
B5: G | C5: Plate | D5: P500x500x20 | E5: G-P500x500x20-115W | F5: 0 | G5: 0.001 | H5: 500 | I5: 500 | J5: 0.001 | K5: 20
B6: G | C6: HS | D6: S22x22x6 | E6: G-S22x22x6-1.5W | F6: 8 | G6: 2 | H6: 22 | I6: 22 | J6: 6 | K6: 2
B7: G | C7: HS | D7: S200x50x30 | E7: G-S200x50x30-70W | F7: 11 | G7: 2.5 | H7: 200 | I7: 50 | J7: 30 | K7: 2.5
B8: G | C8: HS | D8: S290x80x40 | E8: G-S290x80x40-75W | F8: 20 | G8: 2 | H8: 80 | I8: 290 | J8: 40 | K8: 4
B9: G | C9: HS | D9: S1000x42x29 | E9: G-S1000x42x29-80W | F9: 2 | G9: 2 | H9: 1000 | I9: 42 | J9: 29 | K9: 0.7
B10: G | C10: HS | D10: C83x24x47 | E10: G-C83x24x47-28W | F10: 24 | G10: 1 | H10: 47 | I10: 110 | J10: 24 | K10: 1
B11: G | C11: HS | D11: C160x45x220 | E11: G-C160x45x220-200W | F11: 28 | G11: 2 | H11: 220 | I11: 220 | J11: 45 | K11: 2
B12: G | C12: HS | D12: C240x150x45 | E12: G-C240x150x45-500W | F12: 72 | G12: 2 | H12: 240 | I12: 470 | J12: 45 | K12: 2
B13: G | C13: HS | D13: S430x410x120 | E13: =B13& "-"&D13&"-"&L13&"W" -> G-S430x410x120-400W | F13: 32 | G13: 1 | H13: 410 | I13: 430 | J13: 120 | K13: 1 | L13: 400
B14: G | C14: HS | D14: S510x430x220 | E14: G-S510x430x220-1000W | F14: 42 | G14: 1 | H14: 430 | I14: 510 | J14: 220 | K14: 1 | L14: 1000
B15: PCC | C15: HS | D15: Sport | E15: PCC-Sport-400W | F15: 32 | G15: 2 | H15: 430 | I15: 416 | J15: 100 | K15: 1
B16: PCC | C16: HS | D16: Sport | E16: PCC-Sport-500W | F16: 32 | G16: 1 | H16: 410 | I16: 430 | J16: 120 | K16: 1
B17: PCC | C17: HS | D17: Sport | E17: PCC-Sport-1000W | F17: 42 | G17: 1 | H17: 430 | I17: 510 | J17: 220 | K17: 1
B18: PCC | C18: HS | D18: Project | E18: PCC-Project-180W | F18: 32 | G18: 1 | H18: 200 | I18: 550 | J18: 23 | K18: 1
B19: PCC | C19: HS | D19: Project | E19: PCC-Project-600W | F19: 32 | G19: 1 | H19: 320 | I19: 300 | J19: 170 | K19: 1
B20: PCC | C20: HS | D20: Hproject | E20: PCC-Hproject-600W | F20: 32 | G20: 1 | H20: 300 | I20: 300 | J20: 175 | K20: 1
B21: PCC | C21: HS | D21: Hproject | E21: PCC-Hproject-400W | F21: 32 | G21: 1 | H21: 250 | I21: 250 | J21: 175 | K21: 1
B22: PCC | C22: HS | D22: HProject | E22: PCC-HProject-300W | F22: 32 | G22: 1 | H22: 250 | I22: 250 | J22: 160 | K22: 1
B23: PCC | C23: HS | D23: Flooding | E23: PCC-Flooding-200W | F23: 4 | G23: 1 | H23: 730 | I23: 310 | J23: 90 | K23: 1
B24: PCC | C24: HS | D24: Flooding | E24: PCC-Flooding-180W | F24: 4 | G24: 1 | H24: 630 | I24: 310 | J24: 90 | K24: 1
B25: PCC | C25: HS | D25: Flooding | E25: PCC-Flooding-120W | F25: 4 | G25: 1 | H25: 540 | I25: 310 | J25: 90 | K25: 1
B26: PCC | C26: HS | D26: ProjectS | E26: PCC-ProjectS-140W | F26: 27 | G26: 1 | H26: 190 | I26: 250 | J26: 25 | K26: 1
B27: PCC | C27: HS | D27: ProjectS | E27: PCC-ProjectS-120W | F27: 27 | G27: 1 | H27: 170 | I27: 225 | J27: 25 | K27: 1
B28: PCC | C28: HS | D28: ProjectS | E28: PCC-ProjectS-100W | F28: 27 | G28: 1 | H28: 150 | I28: 215 | J28: 25 | K28: 1
B29: PCC | C29: HS | D29: Factory | E29: PCC-Factory-150W | F29: 24 | G29: 20 | H29: 150 | I29: 470 | J29: 30 | K29: 1
B30: PCC | C30: HS | D30: Factory | E30: PCC-Factory-130W | F30: 24 | G30: 20 | H30: 130 | I30: 470 | J30: 30 | K30: 1
B31: PCC | C31: HS | D31: Factory | E31: PCC-Factory-100W | F31: 24 | G31: 20 | H31: 120 | I31: 470 | J31: 30 | K31: 1
B32: PCC | C32: HS | D32: Street | E32: PCC-Street-150W | F32: 12 | G32: 1 | H32: 590 | I32: 215 | J32: 25 | K32: 1
B33: PCC | C33: HS | D33: Tunnel | E33: PCC-Tunnel-180W | F33: 52 | G33: 1 | H33: 360 | I33: 600 | J33: 45 | K33: 1
B34: PCC | C34: HS | D34: Tunnel | E34: PCC-Tunnel-120W | F34: 26 | G34: 1 | H34: 300 | I34: 430 | J34: 45 | K34: 1
B35: PCC | C35: HS | D35: Tunnel | E35: PCC-Tunnel-90W | F35: 26 | G35: 1 | H35: 300 | I35: 340 | J35: 45 | K35: 1

Sheet HS_D (hidden)
A1: HS Calculation | B1: Heat transfer coefficient | F1: Geometry
R2: e | S2: Rj | T2: 1 | U2: 2 | V2: 3 | W2: Q | X2: Tf
B3: Fin | C3: bottom | D3: Fin Tip | E3: k | F3: Number of Fins | G3: Length | H3: Width | I3: Height | J3: Fin width | K3: Block | L3: heatsink bottom area | Q3: case1 | R3: =G11 ->  | S3: =O11 ->  | T3: =+$F$7*SQRT($B$7*$E$7*C11*B11) ->  | U3: =TANH(SQRT($B$7*B11/($E$7*C11))*$I$7) ->  | V3: =$C$7*($L$7-$F$7*C11) ->  | W3: =#REF! ->  | X3: =+W3/(T3*U3+V3)+#REF! -> 
B4: (W/m2K) | E4: (W/mK) | G4: mm | H4: mm | I4: mm | J4: mm | L4: mm2 | Q4: case2 | R4: =J13 ->  | S4: =Y13 ->  | T4: =+$F$7*SQRT($B$7*$E$7*C13*B13) ->  | U4: =(TANH(D13)+E13)/(1+E13*TANH(D13)) ->  | V4: =$C$7*($L$7-$F$7*C13) ->  | W4: =#REF! ->  | X4: =+W4/(T4*U4+V4)+#REF! -> 
B5: hf | C5: hb | D5: he | E5: k | F5: n/a | G5: L | H5: t | I5: l | J5: b | K5: delta | L5: A | Q5: case3 | R5: =J15 ->  | S5: =Y15 ->  | T5: =+$F$7*SQRT($B$7*$E$7*C15*B15) ->  | U5: =TANH(SQRT($B$7*B15/($E$7*C15))*$I$7) ->  | V5: =$C$7*($L$7-$F$7*C15) ->  | W5: =#REF! ->  | X5: =+W5/(T5*U5+V5)+#REF! -> 
B6: =#REF! ->  | C6: =B6 ->  | D6: =C6 ->  | E6: =#REF! ->  | F6: =#REF! ->  | G6: =#REF! ->  | H6: =#REF! ->  | I6: =#REF! ->  | J6: =#REF! ->  | K6: =#REF! ->  | L6: =H6*G6 ->  | Q6: case4 | R6: =J17 ->  | S6: =Y17 ->  | T6: =+$F$7*SQRT($B$7*$E$7*C17*B17) ->  | U6: =(TANH(D17)+E17)/(1+E17*TANH(D17)) ->  | V6: =$C$7*($L$7-$F$7*C17) ->  | W6: =#REF! ->  | X6: =+W6/(T6*U6+V6)+#REF! -> 
B7: =+B6 ->  | C7: =+C6 ->  | D7: =+D6 ->  | E7: =+E6 ->  | F7: =+F6 ->  | G7: =+G6*0.001 ->  | H7: =+H6*0.001 ->  | I7: =+I6*0.001 ->  | J7: =+J6*0.001 ->  | K7: =+K6*0.001 ->  | L7: =+G7*H7 -> 
S8: =AVERAGE(S3:S6) ->  | T8: =AVERAGE(T3:T6) ->  | U8: =AVERAGE(U3:U6) ->  | V8: =AVERAGE(V3:V6) ->  | X8: =AVERAGE(X3:X6) -> 
A10: case 1 | B10: p | C10: a | D10: m | G10: e | H10: v | I10: D | J10: S | K10: Bi | L10: H | N10: yida | O10: R | V10: =+T8*U8+V8 -> 
B11: =2*H7 ->  | C11: =+J7*H7 ->  | D11: =SQRT(B6*B11/(E6*C11)) ->  | E11: =F7*SQRT(B7*C11*E7*B11)/(C7*L7) ->  | F11: =TANH(SQRT(B7*B11/(E7*C11))*I7) ->  | G11: =E11*F11+1-F7*C11/(L7) ->  | H11: =J7*H7*G7 ->  | I11: =F7/(L7) *SQRT(H11*H7) ->  | J11: =I7*SQRT( (H7)/H11) ->  | K11: =2*B7/E7*SQRT(H11/(H7)) ->  | L11: =D6/B6 ->  | M11: =2*I11*J11/L11+1-I11/J11 ->  | N11: =G11/M11 ->  | O11: =(1/L7)*(1/(G11*C7)+K7/E7) -> 
A12: case 2 | B12: p | C12: a | D12: M | E12: N | J12: e | K12: v | L12: D | M12: S | N12: Bi | O12: H | P12: Hb | Q12: He | R12: E | S12: I | T12: J | U12: F | V12: K | X12: yida | Y12: Rj
B13: =2*$H$7 ->  | C13: =+$J$7*$H$7 ->  | D13: =SQRT(($B$7*B13)/($E$7*C13))*$I$7 ->  | E13: =+($D$7*$I$7)/(D13*$E$7) ->  | F13: =SQRT($B$7*B13/($E$7*C13)) ->  | G13: =$F$7*SQRT($B$7*$E$7*C13*B13)/($C$7*$L$7) ->  | H13: =TANH(F13*$I$7)+$D$7/(F13*$E$7) ->  | I13: =1+$D$7/(F13*$E$7)*TANH(F13*$I$7) ->  | J13: =+G13*H13/I13+1-$F$7*C13/$L$7 ->  | K13: =$J$7*$H$7*$G$7 ->  | L13: =$F$7/($L$7) *SQRT(K13*$H$7) ->  | M13: =$I$7*SQRT( ($H$7)/K13) ->  | N13: =2*$B$7/$E$7*SQRT(K13/($H$7)) ->  | O13: =$D$7/$B$7 ->  | P13: =+$C$7/$B$7 ->  | Q13: =+$D$7/$B$7 ->  | R13: =2*L13/(SQRT(N13)*P13) ->  | S13: =+Q13/P13*L13 ->  | T13: =0.5*SQRT(N13)*Q13 ->  | U13: =SQRT(N13) ->  | V13: =SQRT(K13/$H$7^3) ->  | W13: =2*L13*M13/O13+1-(1+$D$7/$C$7)*(L13/M13) ->  | X13: =+J13/W13 ->  | Y13: =(1/$L$7)*(1/(J13*$C$7)+$K$7/$E$7) -> 
A14: case 3 | B14: p | C14: a | D14: M | E14: N | J14: e | K14: v | L14: D | M14: S | N14: Bi | O14: H | P14: Hb | Q14: He | R14: E | S14: I | T14: J | U14: F | X14: yida | Y14: Rj
B15: =2*($H$7+$J$7) ->  | C15: =+$J$7*$H$7 ->  | D15: =SQRT(($B$7*B15)/($E$7*C15))*$I$7 ->  | E15: =+($D$7*$I$7)/(D15*$E$7) ->  | F15: =SQRT($B$7*B15/($E$7*C15)) ->  | H15: =+F7*SQRT(B7*E7*C15*B15)/(C7*L7) ->  | I15: =TANH(SQRT(B7*B15/(E7*C15))*I7) ->  | J15: =+H15*I15+1-F7*C15/L7 ->  | K15: =$J$7*$H$7*$G$7 ->  | L15: =$F$7/($L$7) *SQRT(K15*$H$7) ->  | M15: =$I$7*SQRT( ($H$7)/K15) ->  | N15: =2*$B$7/$E$7*SQRT(K15/($H$7)) ->  | O15: =$D$7/$B$7 ->  | P15: =+$C$7/$B$7 ->  | Q15: =+$D$7/$B$7 ->  | R15: =2*L15/(SQRT(N15)*P15) ->  | S15: =+Q15/P15*L15 ->  | T15: =0.5*SQRT(N15)*Q15 ->  | U15: =SQRT(N15) ->  | V15: =SQRT(K15/$H$7^3) ->  | W15: =2*L15*V15/O15+2*L15*M15/O15+1-L15/M15 ->  | X15: =+J15/W15 ->  | Y15: =(1/$L$7)*(1/(J15*$C$7)+$K$7/$E$7) -> 
A16: case 4 | B16: p | C16: a | D16: M | E16: N | J16: e | K16: v | L16: D | M16: S | N16: Bi | O16: H | P16: Hb | Q16: He | R16: E | S16: I | T16: J | U16: F | X16: yida | Y16: Rj
B17: =2*($H$7+$J$7) ->  | C17: =+$J$7*$H$7 ->  | D17: =SQRT(($B$7*B17)/($E$7*C17))*$I$7 ->  | E17: =+($D$7*$I$7)/(D17*$E$7) ->  | F17: =SQRT($B$7*B17/($E$7*C17)) ->  | G17: =$F$7*SQRT($B$7*$E$7*C17*B17)/($C$7*$L$7) ->  | H17: =TANH(F17*$I$7)+$D$7/(F17*$E$7) ->  | I17: =1+$D$7/(F17*$E$7)*TANH(F17*$I$7) ->  | J17: =+G17*H17/I17+1-$F$7*C17/$L$7 ->  | K17: =$J$7*$H$7*$G$7 ->  | L17: =$F$7/($L$7) *SQRT(K17*$H$7) ->  | M17: =$I$7*SQRT( ($H$7)/K17) ->  | N17: =2*$B$7/$E$7*SQRT(K17/($H$7)) ->  | O17: =$D$7/$B$7 ->  | P17: =+$C$7/$B$7 ->  | Q17: =+$D$7/$B$7 ->  | R17: =2*L17/(SQRT(N17)*P17) ->  | S17: =+Q17/P17*L17 ->  | T17: =0.5*SQRT(N17)*Q17 ->  | U17: =SQRT(N17) ->  | V17: =SQRT(K17/$H$7^3) ->  | W17: =2*L17*M17/O17+1-(1+$D$7/$C$7)*(L17/M17)+2*L17*V17/O17 ->  | X17: =+J17/W17 ->  | Y17: =(1/$L$7)*(1/(J17*$C$7)+$K$7/$E$7) -> 
